{"text_format":"1","workbook":"xlsx","n_sheets":14,"sheets":["Inledning & innehåll","Egna beräkningar","Detaljerad innehållsförteckning","Kommun","Kommun & Region","Region","Samv. mellan verksamheter","Ideella organisationer","Stat","Rättsväsende","Privat, offentlig & ideel sek","Totalkostnad alla org.","Ex1","Ex2"],"not_rendered":{"charts":15,"images":0,"macros":1,"external_links":1,"defined_names":116,"comments":2,"pivot_tables":0},"unopened":[],"bounds":{"document_bytes":16777216,"sheet_cells":100000,"rows_first":2000,"rows_last":500,"rows_between":2000,"halvings":0,"cell_chars":16384,"cell_head_chars":4096},"cells_cut":0,"cells_raw":0,"read":"whole","date_system":"1900"}

{"sheet":"Inledning & innehåll","index":0,"n_rows":56,"n_cols":9,"rows_kept":56,"cut":false,"hidden":false,"merged":[[21,2,28,9],[1,2,2,9],[35,19,35,21],[35,22,35,24],[49,2,50,2],[45,19,45,21],[45,22,45,24],[4,2,15,9],[16,2,17,9]]}
[]
[null,null,"Beräkningsverktyg för att uppskatta kostnader för insatser som föranletts av våld i nära relationer "]
[]
[]
[null,null,"Syftet med beräkningsverktyget är att ge kommuner och regioner möjlighet att systematiskt beräkna kostnaderna av insatser som har föranletts av våld i nära relationer, både för den utsatte, andra familjemedlemmar samt våldsutövaren. Den bör också kunna fungera som ett dialogverktyg och möjliggöra diskussioner kring våldet och dess kostnader.\n\nMed hjälp av beräkningsverktyget kan man både synliggöra hur mycket våld i nära relationer kostar en viss organisation, och vilken totalkostnad en enskild våldsutsatt individ innebär för fler organisationer. Verktyget kan användas av alla som har information om insatsens målgrupp, men primära användare är kommuner och regioner.\n\nPå de olika bladen i denna Excel-fil finns insatser med schablonkostnader sorterade efter huvudman (schablonkostnaderna är justerbara). Fyll i de insatser som är relevanta för din organisation, så beräknas den sammanlagda kostanden för din organisation automatiskt. På bladet längst till höger (”Totalkostnad alla org.”) kan du, om du har sammanställt insatser från andra organisationer, se totalkostnaden för samtliga organisationers insatser. Eftersom kostnadsskattningen är genomförd utifrån ett verksamhetsperspektiv underskattas där med de totala kostnaderna för våld i nära relationer. Exempel på sådana kostnader och som inte ingår i verktyget är nedsatt livskvalitet, social isolering, ekonomiska problem och barns lidande, som inte nödvändigtvis leder till insatser. Beräkningsverktyget kan ändå tjäna ett syfte i att synliggöra de verksamhetskostnader som våldet medför samt att synliggöra problematiken. \n"]
[]
[]
[]
[]
[]
[]
[]
[]
[]
[]
[]
[null,null,"Till beräkningsverktyget finns även en tillhörande användarmanual – Instruktion till Socialstyrelsens beräkningsverktyg för att uppskatta kostnader för insatser som föranletts av våld i nära relationer (Dnr. 19050/2017)."]
[]
[]
[]
[null,null,"Så här går du tillväga:"]
[null,null,"Steg 1. Välj huvudman.\nSteg 2.  Fyll i antal enheter i respektive insatser inom ditt verksamhetsområde.\nSteg 3. Klicka på Resultat & grafer för att erhålla sammanfattande tabeller och figurer fördelat per huvudman.\nOm man önskar följa kostnader för enskild individ över flera organisationer följ steg 1 och 2 för samtliga organisationer. Därefter:\nSteg 4. Klicka på fliken Totalkostnad alla org. Här finns de sammanlagda kostnaderna för alla insatser samt kostnaderna presenterade per organisation på översiktlig nivå. För att rensa antaganden finns under denna flik även knappen Rensa antaganden.\n"]
[]
[]
[]
[]
[]
[]
[]
[]
[]
[null,null,"Innehållsförteckning"]
[]
[]
[]
[]
[]
[null,null,"Skola och förskola",null,"Ungdomsmottagning",null,"Primärvård",null,"Kvinnojour"]
[null,null,"Socialtjänst",null,null,null,"Specialiserad vård",null,"Brottsofferjour"]
[null,null,"Sammanställning kommun",null,null,null,"Tandvård"]
[null,null,null,null,null,null,"Rättspsykiatrisk avdelning/klinik"]
[null,null,null,null,null,null,"Oberoende av verksamhet"]
[null,null,null,null,null,null,"Sammanställning region"]
[]
[]
[]
[]
[]
[]
[null,null,"Samverkan mellan olika verksamheter",null,"Försäkringskassan",null,"Polisen",null,"Arbetsgivare"]
[null,null,null,null,"Skatteverket",null,"Åklagarmyndigheten"]
[null,null,null,null,"Kronofogdemyndigheten",null,"Domstol"]
[null,null,null,null,"Brottsoffermyndigheten",null,"Kriminalvård"]
[null,null,null,null,"Sammanställning stat",null,"Advokatbyrå"]
[null,null,null,null,null,null,"Rättsmedicinalverket"]
[null,null,null,null,null,null,"Sammanställning rättsväsende"]

{"sheet":"Egna beräkningar","index":1,"n_rows":128,"n_cols":11,"rows_kept":128,"cut":false,"hidden":true,"merged":[[0,7,0,8],[0,9,0,10]]}
["Aktivitet/insats","Beskrivning","Enhet","Enhetskostnad","Egen skattning \nav volym","Summa kostnad",null,"Låg resursåtgång\n(antal respektive motivering)",null,"Hög resursåtgång\n(antal respektive motivering)"]
[]
["Skola och förskola"]
["Besök skolläkare","I vissa fall remitteras barnet/ungdomen till skolläkare för vidare behandling.","1 timme \n(skolläkare)",1900,null,{"$f":"D4*E4","v":0}]
["Byte av skola","När barn behöver byta skola är det framför allt rektorn som blir involverad, både på mottagande och avlämnande skola.","1 skolbyte\n (2 rektorer, 1,5 timmar var)",3700,null,0]
["Elevvårdskonferens","När problemet uppdagas träffas rektor, skolsköterska och kurator i elevvårdskonferensen för att diskutera hur situationen ska hanteras. Ibland deltar även lärare.","1 elevvårdskonferens \n(kurator, skolsköterska, rektor, 1,5 timmar var)",4500,null,0]
["Ledsagning till aktiviteter","Ledsagning sker genom att en person som barnet/ungdomen litar på kan följa med till aktiviteter, exempelvis mellan lektioner eller till vårdcentral. Sker exempelvis av fritidsledare.","1 ledsagning (fritidsledare, 0,5 timme)",350,null,0]
["Orosanmälan (inklusive involvering i eventuell utredning)","Orosanmälan kan genomföras av samtliga professioner, men ofta är skolsköterskan involverad.","1 timme \n(skolsköterska)",950,null,0,null,"1 timme","Det görs enbart en orosanmälan.","3 timmar","Utöver orosanmälan närvarar personen på ett möte för att återge vad som har hänt."]
["Samtal skolsköterska","Skolsköterskan kan genom samtal fånga upp problematiken. Utöver detta förekommer det att barn som upplever våld söker vård för relaterade åkommor som inte direkt kopplas till våld, exempelvis magont och oro. Resursåtgång för detta är inte inkluderat här.","1 samtal\n (skolsköterska, 1,5 timmar)",1400,null,0,null,"1 samtal","Ett enstaka hälsosamtal genomförs där problematiken fångas upp.","3–4 samtal","Ibland behövs det flera samtal för att fånga upp problematiken och sedan remittera vidare (till skolläkare, socialtjänst eller BUP)."]
["Stödsamtal","Stödsamtal genomförs oftast av kurator, men mer informellt kan det handla om andra professioner som pratar med barnet/ungdomen för att upprätta ett förtroende.","1 samtal (kurator, 1 timme)",850,null,0,null,"1 samtal","Ett enstaka stödsamtal genomförs där problematiken fångas upp.","3–4 samtal","Ibland behövs det flera samtal för att fånga upp problematiken och sedan remittera vidare (till skolläkare, socialtjänst eller BUP)."]
["Socialtjänst"]
["Behandlingshem","Ett behandlingshem handlar här om en plats som fokuserar mycket på att utveckla föräldraförmåga. Är en relativt ovanlig insats avseende våld i nära relationer. Det kan också röra sig om HVB-hem för personer som utsatts för våld i familjen. insatsen/aktiviteten innebär en utbetalning.","1 månad",90000,null,{"$f":"D12*E12","v":0},null,"0,5 månad","En granskning görs på behandlingshem utifrån att föräldern har omsorgsplikt för att komma fram till om LVU ska tillämpas eller inte.","24 månader","Behandlingstiden beror på möjlighet till utslussning. Behandlingshem kan också innefatta en längre behandling med förälder och barn där föräldern ska lära sig att ta hand om sitt barn. "]
["Boendestöd","Boendestöd utgörs av en person som ser till att den utsattas lägenhet är i gott skick, hjälper till att betala räkningar, ser till att vardagen flyter på, tar vid behov kontakt med vården etcetera. Den utsatta kan ha funktionsnedsättning eller psykisk nedsatthet. insatsen/aktiviteten innebär en utbetalning.","1 månad \n(10–12 timmar, boendestödjare)",{"$f":"700*11","v":7700},null,{"$f":"D13*E13","v":0},null,"6 månader","Boendestöd är vanligen en åtgärd som används under rätt lång tid, men ibland förekommer kortare perioder på sex månader. ","24 månader","Boendestöd upp till två år är inte ovanligt."]
["Boendestöd (indirekt)","Boendestödet kan vara en kanal för observation utifrån en omsorgsbrist pga. våld.  Kan även användas strategiskt för att skapa förtroende och vid misstanke om våld försöka få mer information om det och hålla parterna isär. ","1 besök (1 timme, boendestödjare)",{"$f":"700","v":700},null,{"$f":"D14*E14","v":0},null,"1 månad","Kortare serviceinsats.","3 månader","Längre observation."]
["Byte av kommun","Behöver den utsatta byta kommun behöver denna transporteras långt bort av två socialsekreterare, och två nya socialsekreterare ska ta vid. Byte av kommun innebär alltid en hög resursåtgång.","1 byte av kommun \n(4 socialsekreterare, genomsnitt 10 timmar var)",33100,null,{"$f":"D15*E15","v":0}]
["Daglig verksamhet (indirekt)","Daglig verksamhet är en kanal för att notera tecken på våld i nära relation. Kan handla om att använda den strategiskt för att skapa förtroende och vid misstanke om våld försöka få mer information om det och hålla parterna isär. ","1 samtal, 1,5 timme\n(omvårdnadspersonal/ arbetskonsulent/ biståndshandläggare/kurator)",1200,null,{"$f":"D16*E16","v":0},null,"1 samtal","Kan användas för att sätta sig in i problematiken och motivera till en långsiktig förändring. Låg resurs avser ett klargörande samtal. En vanlig samtalsserie är fyra - fem samtal.","10 samtal","Behöver längre tid på sig för att sätta sig in i problematiken."]
["Ekonomiskt bistånd","Ekonomiskt bistånd handlar om faktisk utbetalning till den utsatta. Kan vara allt från mindre akut stöd i direkt anslutning till våldssituationen, till stadigvarande utbetalning av fullt ekonomiskt bistånd för att ha pengar att leva för. insatsen/aktiviteten innebär en utbetalning","Total utbetalning","[skriv själv in totalsumman här]","[skriv själv in totalsumman här]",null,null,1000,"Det görs enbart en enskild utbetalning av mindre akut stöd, för att hjälpa på kort sikt. Personer kan sen få tillgång till pengar.",43000,"Tre månaders ekonomiskt bistånd för kvinna utan inkomst med två barn (7 och 11 år) i egen lägenhet."]
["Familjebehandling","Familjebehandling handlar om familjeinriktat stöd för att bland annat stödja i rutiner och förbättra föräldraskap. Genomförs av exempelvis en familjeterapeut. ","1 samtal (familjeterapeut, 2 timmar)",{"$f":"1700","v":1700},null,{"$f":"D18*E18","v":0},null,"4 samtal","Familjebehandling där personerna får kortare familjeinriktat hjälp och stöd. En vanlig samtalsserie är 4-5 samtal.","20 samtal","Familjebehandling med en mer omfattande problematik och större behov av stöd."]
["Familjehemsplacering","Barnet/barnen kan vid behov placeras i familjehem. Här handlar det om temporär placering tills dess att situationen för föräldrarna har stabiliserats. Kan i vissa fall även handla om unga vuxna i fall då det handlar om hedersrelaterat våld. Insatsen/aktiviteten innebär en utbetalning.","1 månad",54000,null,{"$f":"D19*E19","v":0},null,"3 månader","Föräldrasituationen stabiliseras rätt snabbt så barnet/barnen kan komma tillbaka hem igen.","15 månader","Det är en komplex situation på hemmaplan och för föräldrarna. Tar lång tid att landa i en tillräckligt trygg situation."]
["Familjerådgivning","Familjerådgivning utgörs av parterapi där fokus ligger på att lösa relationsproblem. Det kan vara par som vill förbättra sin relation och fortsätta leva tillsammans eller par där en eller båda vill separera. Det kan också handla om hjälp och stöd i föräldraskapet. insatsen/aktiviteten kan innebär en utbetalning.","1 samtal (socionom, 2 timmar)",1700,null,0,null,"2 samtal","Relationsproblematiken kan redas ut relativt snabbt.","10 samtal","Det finns en stor oenighet om många saker."]
["Förhandsbedömning","När ett ärenden kommer in till socialtjänsten görs en förhandsbedömning där det tas ställning till vad som bör ske i ärendet. Utgår vanligen från ett standardiserat formulär utifrån riskbedömning, tidigare kontakter med socialtjänsten etcetera.  ","1 timme \n(socialsekreterare)",850,null,0,null,"3 timmar","Förhandsbedömningen innefattar ett kort akut ärende av enklare slag.","6 timmar","Förhandsbedömningen kräver en del skrivbordsutredning samt avstämningar med andra enheter och myndigheter."]
["Genomgång av säkerhet","Denna säkerhetsgenomgång innefattar bland annat skalskydd för lägenheten, åtgärdslista vid kontaktförsök, hur lägenhet ska lämnas och hur kvinnan ska agera när hon går på stan.","1 säkerhetsgenomgång (behandlingssekreterare eller kurator, 1,5 timmar)",1300,null,0]
["Gruppsamtal","Samtalsstöd i grupp till utsatta, ofta sex till åtta deltagare per grupp. Syftar till att ge stöd på olika sätt. ","1 samtal \n(kurator/ behandlingssekreterare, 2 timmar)",{"$f":"850*2","v":1700},null,0]
["Gruppsamtal (för förövaren)","Samtalsstöd i grupp till förövare, ofta från sex till åtta deltagare. ","1 samtal (2 socialsekreterare, 1,5 timmar var)",{"$f":"2500","v":2500},null,0,null,"26 veckor","Den kortaste tiden för dessa samtal är en gång i veckan i ett halvår.","76 veckor","Den längsta tiden som det går att vara inkluderad i dessa gruppsamtal."]
["Handläggning ekonomiskt bistånd","En ansökan om ekonomiskt bistånd kräver handläggning av en socialsekreterare, vilket även innefattar beslut om godkännande eller avslag. ","1 timme \n(socialsekreterare)",850,null,0,null,"2 timmar","Handläggningen gäller enbart ett ärende av relativt enkelt slag där i princip all information finns tillgänglig.","12 timmar","Innefattar en längre inledande handläggning samt tre efterföljande handläggningar av nya ansökningar från individen."]
["Hemtjänst (indirekt)","Hemtjänsten är en kanal för att notera tecken på våld i nära relation. Kan handla om att använda det strategiskt för att skapa förtroende och vid misstanke om våld försöka få mer information om det och hålla parterna isär. ","1 timme \n(hemtjänstvårdare)",700,null,0,null,"2 timmar","Sätter sig in i problematiken, motiverar till en långsiktig förändring","12 timmar","Behöver längre tid på sig."]
["Hjälp med ny bostad (ej skyddat boende)","Personal på skyddat boende hjälper den utsatta att registrera sig på alla bostadsbolag och bevaka möjligheter. När den utsatta får ett boende behövs en träff med hyresvärden, en kartläggning för att fastställa om det är en lämplig bostad att flytta till, samt hjälp med flytt."," 1 bostadsärende (kurator, socionom eller liknande, 10 timmar)",8300,null,0]
["Kontaktperson","En kontaktpersonen fungerar som en vän och medmänniska till en ungdom eller vuxen, exempelvis när en individ kommer ny till orten. Genom regelbundna träffar byggs en relation och kontaktpersonen fungerar som en stödperson. Det handlar inte om kontaktperson på skyddat boende. insatsen/aktiviteten innebär en utbetalning."," 1 månad\n(baserad på 3 kontakter per vecka)",1200,null,0,null,"3 månader","En kontakt som innebär inslussning i aktiviteter av olika slag. Ungdomen blir sedan \"självgående\".","24 månader","Ungdomen behöver mycket eget stöd för att klara av att vara tillsammans med andra. Kombinerat individuellt stöd och \"utslussning\" i samhället."]
["Ledsagning till aktiviteter","Ledsagning innebär att en person följer med den utsatta till olika myndigheter etcetera. Det är behandlingssekreterare på skyddat boende som genomför detta.","1 ledsagning\n (behandlingssekreterare, 1,5 timmar)",1200,null,0,null,"2 ledsagningar","Ledsagning till enbart två myndigheter då det inte finns så mycket som behöver åtgärd.","8 ledsagningar","Ledsagning till åtta myndigheter då det finns ett stort behov av att lösa en mängd olika myndighetsfrågor utifrån den uppkomna situationen."]
["Orosanmälan","När en orosanmälan kommer in ska den tas emot och skyndsamt hanteras (innefattar ej eventuell utredning).","1 orosanmälan \n(handläggare, 0,5 timmar)",400,null,0]
["Praktiskt stöd i akut situation","Detta praktiska stöd handlar om att få kvinnan i säkerhet. Kan innefatta hjälp att hämta personliga tillhörigheter, hämta på förskolan, samt andra akuta åtgärder. ","1 timme \n(socialsekreterare)",850,null,0,null,"4 timmar","Innefattar en kort kartläggning, ordna plats på skyddat boende samt hämta personliga saker. Stöter inte på några större utmaningar i detta.","72 timmar","Rör hedersrelaterat våld, och kräver två socialsekreterare på grund av hotnivån. De behöver hämta barnen samt ta kvinna och barn till skyddat boende i annan kommun (inklusive övernattning)."]
["Riskbedömning","En riskdömningen sker i anslutning till en utredning för att bedöma graden av risk för den utsatta. Görs av socialsekreterare. ","1 timme \n(socialsekreterare)",850,null,0,null,"2 timmar","En \"vanlig\" riskbedömning som genomförs utan några större hinder.","3 timmar","Riskbedömning gällande hedersrelaterad problematik."]
["Rådgivande/stödjande samtal","Detta innefattar enskilda samtal med den utsatta för att ge denna stöd i situationen.","1 samtal\n (kurator/ behandlingssekreterare, 2 timmar)",1700,null,0,null,"1 samtal","Den utsatta har gott självförtroende och har ett stort nätverk, så samtalet handlar om klargöranden kring vad socialtjänsten kan erbjuda samt konkreta råd. ","20-25 samtal","Det behövs både praktiskt stöd och samtalsstöd, då personens situation är väldigt utsatt. Det behövs även stöd vid rättegång etcetera."]
["Samarbetssamtal","Samarbetssamtal syftar till att få två föräldrar att samarbeta bättre. Har koppling till vårdnadstvist i någon form, men inte nödvändigtvis i domstol. Är ofta olämpligt att föräldrarna träffas för dessa samtal om det finns en våldsproblematik. Då kan samtal med föräldrarna ske var för sig. ","1 samtal\n (socialsekreterare, 2,5 timmar)",2100,null,0,null,"3 samtal","Inledande individuella samtal + gemensamt samtal. Hittar en överenskommelse av något slag rätt snabbt.","10 samtal","Inledande individuella samtal + många gemensamma samtal. Står långt ifrån varandra och har svårt att hitta vägar mot samarbete."]
["Skyddat boende","Boende där den utsatta kan vara under trygga och skyddade omständigheter. Dessa har olika innehåll och säkerhetsgrad, allt från grundläggande boende, till väldigt hög säkerhet. insatsen/aktiviteten kan innebära en utbetalning.","1 dygn\n(medelhög säkerhetsgrad)",3000,null,0,null,"1 dygn","Krävs bara en högst temporär lösning, då det därefter finns annan lite mer långvarig bostadslösning på annat håll.","150 dygn \n(5 månader)","Boendesituationen i kommunen är väldigt svår så det tar relativt lång tid att hitta en annan, mer långvarig lösning."]
["Stödjande samtal (för förövaren)","Enskilda stödjande samtal med förövaren i syfte att hjälpa och ge underlag för utveckling. Sker av socialsekreterare.","1 samtal (socialsekreterare, 2 timmar)",1700,null,0,null,"10 samtal","Innefattar en kartläggning om fyra tillfällen och efter det sex samtal som är mer direkt stödjande. Är inte en alltför komplicerad problembild.","50–60 samtal","Behövs omfattande stöd för att reda ut många olika aspekter. Träffas en gång per vecka under första året och sedan en gång i månaden i sex månader."]
["Tolk","I de fall den utsatta eller förövaren inte har tillräckligt god språkkunskaper i de språk som kommunarbetare talar används tolk. insatsen/aktiviteten innebär vanligen en utbetalning.","1 timme (tolk)",550,null,0,null,"1 timme",null,"12 timmar","Exempelvis tolk för våldsutsatt som bor på skyddat boende 3 mån, samtal 1 gång per vecka."]
["Umgängesstöd","Umgängesstöd kan vara aktuellt när det finns våldsutsatta barn med i bilden. Våldsutövaren får inte träffa barnet själv, utan måste göra det tillsammans med en socialsekreterare. ","1 timme \n(socialsekreterare)",850,null,0,null,"1 träff","Det blir tydligt att föräldern inte är intresserad av kontakt med barnet under dessa omständigheter.","25 träffar","Umgängesstöd ska omprövas/normaliseras efter ett år. Normal frekvens är träffar varannan vecka."]
["Utredning barn som bevittnat/upplevt våld","Utredning ska inledas när ett barn misstänks ha blivit utsatt för våld eller bevittnat våld av en närstående.  Ska ge beslutsunderlag för lämplig väg framåt, vilket kan innebära ett tvångsomhändertagande av barnet/ungdomen. Genomförs av socialsekreterare. ","1 timme \n(socialsekreterare)",850,null,0,null," 10 timmar","Samtal med föräldrar omfattande 2 timmar/person samt kringkontakter.","160- 200 timmar","Ska vara gjord på 4 månader à 10h /vecka. Innefattar tvångsomhändertagande av barn/ungdom."]
["Utredning våldsutsatt vuxen","Utredning som utgår från ett antal konkreta frågor gällande bland annat individens sociala liv, hälsa och vad individen blivit utsatt för. Genomförs av socialsekreterare.","1 samtal (socialsekreterare, 2,5 timmar)",2100,null,0,null,"3 samtal","Den utsatta lämnar klara och tydliga svar och de två förstår varandra från början.","7 samtal","Den utsatta har en komplex problembild och psykisk ohälsa. Finns även många praktiska saker som behöver redas ut. "]
["Utredning vårdnad av barn","Vid en separation kan en utredning om vårdnad bli aktuell. En sådan innefattar bland annat samtal med respektive förälder, barnet/barnen, yrkespersoner i barnets närhet samt hembesök. Genomförs av /familjerättssekreterare/socialsekreterare i syfte att skapa beslutsunderlag i vårdnadsfråga. ","1 timme \n(socialsekreterare)",850,null,0,null,"20 timmar","2 samtal per person utförs av två socialsekreterare. Samtalet omfattar 1 timme. Hembesök 2 timmar samt dokumentation 4 timmar.","40 timmar","Behov av dubbelt så många samtal som i tidigare exempel. 3 hembesök respektive förälder, dokumentation, samverkan andra myndigheter."]
["Utredningshem","En eller båda föräldrar är placerade med barnet för att utreda föräldrarnas omsorgsförmåga och barnets behov. Kan handla om att föräldrarna är där halva tiden var. Här inkluderas enbart själva utredningstiden. Utredningshem används ibland också som skyddat boende. insatsen/aktiviteten innebär en utbetalning.","2 månader",284000,null,0]
["KOMMUN OCH LANDSTING/REGION"]
["Ungdomsmottagning"]
["Kartläggande samtal","När individen (ca 13-23 år) kommer till ungdomsmottagningen görs en kartläggning av vad anledningen till uppsökandet är. Utifrån det beslutas om det sker en remittering eller stödsamtal inom ungdomsmottagningen.","1 samtal (kurator, 1 timme)",{"$f":"850","v":850},null,{"$f":"D45*E45","v":0},null,"1 samtal",null,"3 samtal"]
["Stödsamtal enskilt","Innefattar enskilda stödsamtal mellan individen (våldsutsatt eller våldsutförare) och kurator eller barnmorska. Kan exempelvis beröra hedersrelaterat våld,  partnervåld i unga år eller hot om internet-spridning av bilder.","1 samtal (kurator/ barnmorska, 1 timme)",{"$f":"850","v":850},null,{"$f":"D46*E46","v":0},null,"2 samtal",null,"15 samtal"]
["Stödsamtal grupp","Om det finns ett flertal individer inom den enskilda ungdomsmottagningen kan en samtalsgrupp skapas där stödsamtal sker i grupp snarare än enskilt. Ofta sex till åtta deltagare.","1 samtal (2 kuratorer, 2 timmar var)",{"$f":"850*2*2","v":3400},null,{"$f":"D47*E47","v":0},null,"8 samtal",null,"16 samtal"]
["Gynekologisk undersökning","Efter samtal med kurator kan individen genomgå en gynekologisk undersökning vid ungdomsmottagningen, exempelvis vid sexuellt våld eller könsstympning. ","1 undersökning (gyn-läkare)",2000,null,{"$f":"D48*E48","v":0}]
["LANDSTING/REGION"]
["Specialiserad vård"]
["Akutmottagning psyk","Akutmottagningen genomför bedömningar av\ndet psykiatriska akuttillstånd, vårdbehov samt eventuella behov av inläggningar på vårdavdelning. Utifrån våld i nära relationer är akutmottagningen aktuell för både den utsatta och förövaren.","1 vårdkontakt",3800,null,{"$f":"D51*E51","v":0}]
["Akutmottagning somatisk","Akutmottagningen gör bedömningar av de sökande utifrån ett somatiskt (fysiskt) perspektiv. För våld i nära relationer handlar det huvudsakligen om att den utsatta behöver söka akut vård på grund av fysisk skada.","1 vårdkontakt",2600,null,0]
["Ambulans","Ambulansen utgörs av ett sjuktransportmedel (som bil, båt eller helikopter) försedd med medicinsk utrustning och bemannade med ambulanssjukvårdare och/eller sjuksköterska med vidareutbildning.","1 resa \n(tur och retur)",3300,null,{"$f":"D53*E53","v":0}]
["Specialiserad psykiatrisk dagsjukvård","Dagsjukvården vänder sig till personer med psykiska problem som är för svåra för primärvården att hantera, men inte så omfattande att det krävs slutenvård. Avseende våld i nära relationer kan detta vara aktuellt både för den utsatta och förövaren.","1 vårdkontakt",4300,null,0,null,"6 vårdkontakter",null,"Långvarig behandlingsperiod","Patienterna hamnar i en sits där de inte hör hemma någonstans."]
["Specialiserad psykiatrisk mottagningsverksamhet","Specialiserad psykiatrisk vård omfattar områden som allmänpsykiatri, barn- och ungdomspsykiatri och beroendevård. Mottagningsverksamheten innefattar möten med specialister för konsultation.","1 vårdkontakt",4800,null,0,null,"4 vårdkontakter",null,"Långvarig behandlingsperiod"]
["Specialiserad psykiatrisk slutenvård","Slutenvården innefattar ett arbete under längre tid med personer med psykiska problem av olika slag. Patienterna är inlagda på en avdelning för behandling. För våld i nära relationer kan detta gälla både den utsatta och förövaren. Rättspsykiatrisk vård hanteras som en egen post längre ner i listan.","1 vårddygn \n(genomsnitt för psykiatrisk slutenvård)",8000,null,0]
["Specialiserad psykiatrisk slutenvård för barn och ungdomar (BUP)","Slutenvården innefattar ett arbete under längre tid med personer med psykiska problem av olika slag. Patienterna är inlagda på en avdelning för behandling. För våld i nära relationer kan detta gälla både den utsatta och förövaren. ","1 vårddygn \n(genomsnitt för psykiatrisk slutenvård inom BUP)",20500,null,0]
["Specialiserad somatisk \nslutenvård","Slutenvården innefattar mer omfattande medicinsk, kirurgisk och geriatrisk vård där patienten spenderar nätter inom vården. För våld i nära relationer är det kirurgisk vård som huvudsakligen är aktuellt.","1 vårddygn\n(genomsnitt för somatisk slutenvård)",10200,null,0]
["Specialiserad somatisk dagsjukvård","Denna dagsjukvård innefattar dagkirurgi, dagmedicin och övrig dagsjukvård (som exempelvis medicinsk dagrehabilitering). För våld i nära relationer är det dagkirurgi som huvudsakligen är aktuellt.","1 vårdkontakt",5900,null,0,null,"1 vårdkontakt",null,"5 vårdkontakt","Mer omfattande vårdbehov beroende på graden av våld."]
["Specialiserad somatisk mottagningsverksamhet","Specialiserad somatisk vård innefattar hälso- och sjukvård av fysiskt relaterade åkommor av mer specialiserat slag än inom primärvård. Är uppdelad i bland annat medicinsk och kirurgisk vård. Besök hos mottagningsverksamheten kopplat till våld i nära relationer handlar om att exempelvis träffa kirurg för konsultation.","1 vårdkontakt",3400,null,0,null,"1 vårdkontakt",null,"5 vårdkontakt","Mer omfattande vårdbehov beroende på graden av våld."]
["Primärvård"]
["Allmänläkarvård","Allmänläkarvård (inklusive jour) innefattar  här mottagningsverksamhet på vårdcentral (eller hembesök) av läkare som är specialist i allmänmedicin.","1 vårdkontakt",1500,null,{"$f":"D62*E62","v":0},null,"1 besök + 1 telefonsamtal","Våldet upptäcks relativt snabbt och patienten slussas vidare, exempelvis till kurator eller socialtjänst.","10 besök","Patienten kommer in på upprepade besök innan någon frågar om våld i nära relationer."]
["Mödrahälsovård (inklusive gynekologisk undersökning)","I mödrahälsovård ingår gynekologiska undersökningar, mammografier, för- och eftervård av gravida kvinnor, samt preventivmedelsrådgivning i anslutning till graviditet. Basal mödrahälsovård som bedrivs på sjukhus redovisas också här.","1 vårdkontakt",2000,null,{"$f":"D63*E63","v":0},null,"2 vårdkontakter","Barnmorska träffar ett par och förstår att det finns ett problem. Görs ett extra besök hos barnmorskan och kontakt hos mödrahälsovårdspsykolog. ","5 vårdkontakter","Förutom första träff och extrabesök träffar kvinnan en relaterad psykolog vid några tillfällen. Anknytningen inte är god och mamman deprimerad. "]
["Sjuksköterskevård","Sjuksköterskevård (inklusive jour) handlar här om mottagnings- och hembesök av sjuksköterska. ","1 vårdkontakt",500,null,{"$f":"D64*E64","v":0},null,"2-3 vårdkontakter","Våldet upptäcks relativt snabbt och patienten slussas vidare, exempelvis till kurator eller socialtjänst.","> 3 vårdkontakter","Mer omfattande vårdbehov beroende på graden av våld."]
["Tandvård"]
["Allmäntandvård","Allmäntandvården innefattar all tandvård som bedrivs på allmänna tandvårdskliniker (folktandvården och motsvarande). ","1 vårdkontakt",2400,null,{"$f":"D66*E66","v":0},null,"1-2 vårdkontakter",null,">2 vårdkontakter"]
["Specialisttandvård","Specialisttandvård får den som har särskilda behov. Sker på remiss från någon form av vårdgivare. Innefattar exempelvis käkkirurgi, avancerad röntgen, tandersättning och tandreglering.","1 vårdkontakt",6500,null,{"$f":"D67*E67","v":0},null,"1-2 vårdkontakter",null,">2 vårdkontakter"]
["Rättspsykiatrisk avdelning/klinik"]
["Rättspsykiatrisk vård","I de fall en förövare har begått ett våldsbrott under påverkan av allvarlig psykisk störning kan denna inte dömas till fängelse, utan istället till rättspsykiatrisk vård. ","1 dygn",7000,null,{"$f":"D69*E69","v":0}]
["Oberoende av verksamhet"]
["Läkemedel","Läkemedel handlar här om alla former av medicin.","1 recept",200,null,{"$f":"D71*E71","v":0}]
["Tolk","En tolk används när personen i fråga inte har tillräckliga språkkunskaper och det därför behövs översättning. Insatsen/aktiviteten innebär vanligen en utbetalning. ","1 timme",550,null,{"$f":"D72*E72","v":0}]
["IDEELLA ORGANISATIONER"]
["Kvinnojour"]
["Skyddat boende","Skyddat boende som Kvinnojouren själv erbjuder. Den utsatta får tillgång till boendet via socialtjänsten. I de flesta fall ingår skydd, stöd (samtalsstöd) och praktisk hjälp. De flesta jourer erbjuder också särskild barnverksamhet till barn som bor hos dem.  ","1 dygn, 1 person",1600,null,{"$f":"D75*E75","v":0},null,"3 dygn","Den utsatta behöver en kortvarig fristad för att sedan ta sig till ett annat mer långvarigt boende på egen hand.","12 månader","Den utsatta har en komplex problembild och behöver omfattande stöd på olika sätt."]
["Stödjande aktivitet","Med stödjande aktiviteter avses här aktiviteter riktade till individer som inte finns i kvinnojourens skyddade boende. Exempelvis agera medföljare till myndighet, hjälp till med nytt boende, enskilda-/gruppsamtal, umgängesstöd och barnaktiviteter. Dessa aktiviteter är även tillgängliga för de som finns i skyddat boende, men kostnaden för dessa ingår i föregående post.","1 timme\n (olika professioner, tex socionom, beteendevetare, kurator)",800,null,{"$f":"D76*E76","v":0},null,"4 timmar","Den utsatta behöver framförallt något eller några stödjande samtal och råd avseende tillvägagångssätt."," 200 timmar\n(4 timmar per vecka)","Den utsatta bor inte på boendet men har lång och kontinuitet kontakt med kvinnojouren. Handlar bland annat om stödsamtal, upprepade barnaktiviteter, samt stöd vid flera förhör och långa rättsprocesser."]
["Brottsofferjour"]
["Stöd från brottsofferjour","Brottsofferjouren arbetar för alla brottsoffers rättighet att få det stöd som behövs för att få kraften tillbaka. Det kan handla om stöd vid kontakter med hjälpinstanser som kan ge till exempel psykologisk hjälp, skyddat boende eller ekonomiskt understöd.","9 timmar \n(genomsnittlig tidsåtgång för alla typer av brottsoffer)",4300,null,{"$f":"D78*E78","v":0}]
["SAMVERKAN MELLAN OLIKA VERKSAMHETER"]
["Samråd","Samråd kan ske mellan olika verksamheter kring en enskild individ. Tex mellan socialtjänst, polis och sjukvård. Även barnahus, barnläkare, kurator, behandlingshem, åklagare och andra aktörer kan vara involverade.","1 samråd (30min, räknat med 3 aktörer)",{"$f":"800*3*0.5","v":1200},null,{"$f":"D80*E80","v":0},null,"2 samråd","1 planeringssamråd och 1 uppföljning för att tex undersöka behov av läkarundersökning, särskild företrädare eller skyddat boende.",">3 samråd","Trepartssamtal av mer omfattande karaktär."]
["STAT/RÄTTSVÄSENDE"]
["Polisen"]
["Utredningsverksamhet (inklusive lagföring)","Finns misstanke om brott startas en polisutredning för att samla information om skeendet. ","1 utredning och lagföring \n(genomsnitt alla typer av brott)",19300,null,{"$f":"D83*E83","v":0}]
["Åklagarmyndigheten"]
["Sexualbrott","Vid misstanke om sexualbrott engageras åklagarmyndigheten och en åklagare tillsätts för målet. Åklagaren är den som väcker åtal.","1 åklagarärende vid brottsmisstanke \n(genomsnitt för alla typer av brott)",9200,null,{"$f":"D85*E85","v":0}]
["Våldsbrott","Vid misstanke om våldsbrott engageras åklagarmyndigheten och en åklagare tillsätts för målet. Åklagaren är den som väcker åtal.","1 åklagarärende vid brottsmisstanke \n(genomsnitt för alla typer av brott)",5000,null,{"$f":"D86*E86","v":0}]
["Domstol"]
["Brottsmål - hovrätt","Hovrätten tar upp ärenden i fall då tingsrättens dom har överklagats. Domstolen leder processen framåt, från start till slutligt beslut i målet. ","1 genomförande av brottsmål \n(genomsnitt för alla typer av brottsmål)",51800,null,{"$f":"D88*E88","v":0}]
["Brottsmål - tingsrätt","När ett brottsmål kommer upp i tingsrätten är det domstolen som leder processen framåt, från start till slutligt beslut i målet. Tingsrätten är första rättsliga insats i brottsmål inom domstolsväsendet. ","1 genomförande av brottsmål \n(genomsnitt för alla typer av brottsmål)",16300,null,{"$f":"D89*E89","v":0}]
["Tvistemål - hovrätt","Hovrätten tar upp ärenden i fall då tingsrättens dom har överklagats. Domstolen leder processen framåt, från start till slutligt beslut i målet. ","1 genomförande av tvistemål \n(genomsnitt för alla typer av tvistemål)",43400,null,{"$f":"D90*E90","v":0}]
["Tvistemål - tingsrätt","När ett tvistemål kommer upp i tingsrätten är det domstolen som leder processen framåt, från start till slutligt beslut i målet. Tingsrätten är första rättsliga insats i tvistemål inom domstolsväsendet. ","1 genomförande av tvistemål \n(genomsnitt för alla typer av tvistemål)",18400,null,{"$f":"D91*E91","v":0}]
["Kriminalvård"]
["Anstalt","När en förövare dömts till fängelse placeras denna på angiven anstalt för att avtjäna sitt straff.","1 dygn",3400,null,{"$f":"D93*E93","v":0}]
["Frivård","Frivården övervakar klienter som är villkorligt frigivna, har skyddstillsyn, samhällstjänst eller övervakas med hjälp av fotboja.","1 dygn",300,null,{"$f":"D94*E94","v":0}]
["Häkte","När en förövare anhållits och begärts häktad av åklagaren placeras förövaren i häktet.","1 dygn",3600,null,{"$f":"D95*E95","v":0}]
["Advokatbyrå"]
["Domstolsprocess målsägarbiträde (inklusive stöd under förundersökning)","En brottsmisstänkt person har rätt till en försvarsadvokat, vilket vanligen är en advokat eller jurist anställd vid advokatbyrå. Det handlar om att stödja sin klient under förundersökningen och den eventuella domstolsprocessen.","1 genomförande av domstolsmål \n(genomsnitt alla typer av mål)",13200,null,{"$f":"D97*E97","v":0}]
["Domstolsprocess försvarsadvokat (inklusive stöd under förundersökning)","En våldsutsatt har rätt till ett målsägarbiträde vilket vanligen är en advokat eller jurist anställd vid advokatbyrå. Det handlar om att stödja sin klient under förundersökningen och den eventuella domstolsprocessen.","1 genomförande av domstolsmål \n(genomsnitt alla typer av mål)",18900,null,{"$f":"D98*E98","v":0}]
["Rättsmedicinalverket"]
["§ 7-undersökning","Oftast föregås en rättspsykiatrisk undersökning av en mindre så kallad § 7- undersökning. Det är en timslång utvärdering som kan resultera i att utföraren (Rättsmedicinalverket) rekommenderar domstolen att gå̊ vidare och begära en rättspsykiatrisk undersökning.","1 undersökning\n(genomsnitt för alla undersökningar)",7100,null,{"$f":"D100*E100","v":0}]
["Kroppsundersökning","Vid brottsmisstanke kan en kroppsundersökning ske av brottsoffer och gärningsman. I detta ingår även att göra ett sammantaget utlåtande utifrån undersökningen.","1 kroppsundersökning \n(genomsnitt för alla undersökningar)",4800,null,{"$f":"D101*E101","v":0}]
["Rättspsykiatrisk undersökning av häktad","En rättspsykiatrisk undersökning av en häktad person tar vanligen fyra veckor. Under perioden undersöks den misstänkte av ett team bestående av rättspsykiater, psykolog, forensisk socialutredare och omvårdnadspersonal för att tillsammans bilda sig en uppfattning om personens psykiska status vid brottstillfället.","1 undersökning\n(genomsnitt för alla undersökningar)",479000,null,{"$f":"D102*E102","v":0}]
["Rättspsykiatrisk undersökning av person på fri fot","En rättspsykiatrisk undersökning för person på fri fot får max ta 6 veckor. Den genomförs ungefär på samma sätt som den rättspsykiatriska undersökningen av en häktad person.","1 undersökning\n(genomsnitt för alla undersökningar)",71900,null,{"$f":"D103*E103","v":0}]
["Yttrande","Rättsmedicin lämnar ett yttrande i ett fall där de inte gjort några egna kroppsundersökningar, utan enbart utgått ifrån journal- och polisuppgifter.","1 yttrande \n(genomsnitt för alla typer av yttranden)",3000,null,{"$f":"D104*E104","v":0}]
["STAT"]
["Försäkringskassan"]
["Aktivitetsersättning","Aktivitetsersättning beviljas de som är i åldrarna 19–29 år och som av medicinska skäl har fått sin arbetsförmåga nedsatt med minst en fjärdedel under minst ett år. Ersättningen är alltid tidsbegränsad. Insatsen/aktiviteten innebär en utbetalning.","1 månad sjukersättning \n(medelbelopp för all sjukersättning)",7900,null,{"$f":"D107*E107","v":0}]
["Aktivitetsersättning handläggning","Vid ansökan om aktivitetsersättning behöver ärendet handläggas av Försäkringskassan. ","1 beslut om ersättning",11600,null,0]
["Rehabiliteringspenning","Rehabiliteringspenning kan betalas ut till den som har tillfälligt nedsatt arbetsförmåga på̊ grund av sjukdom eller skada och deltar i arbetslivsinriktad rehabilitering. Insatsen/aktiviteten innebär en utbetalning.","1 dag rehabiliteringspenning (medelbelopp för all rehabiliteringspenning)",500,null,0]
["Rehabiliteringspenning handläggning ","Vid ansökan om rehabiliteringspenning behöver ärendet handläggas av Försäkringskassan. ","1 genomförd utbetalning",500,null,0]
["Sjukersättning","Sjukersättning beviljas de som är i åldrarna 30–64 år och som har en stadigvarande nedsatt arbetsförmåga, det vill säga för all överskådlig framtid. Insatsen/aktiviteten innebär en utbetalning.","1 månad sjukersättning \n(medelbelopp för all sjukpenning)",9300,null,0]
["Sjukersättning handläggning","Vid ansökan om sjukersättning behöver ärendet handläggas av Försäkringskassan. ","1 beslut om ersättning",9400,null,0]
["Sjukpenning","Försäkringskassan kan betala ut sjukpenning till den som har tillfälligt nedsatt arbetsförmåga på̊ grund av sjukdom eller skada. Detta sker då från dag 15 och framåt. Insatsen/aktiviteten innebär en utbetalning.","1 dag sjukpenning\n(medelbelopp för all sjukpenning)",600,null,0]
["Sjukpenning handläggning","Vid ansökan om sjukpenning behöver ärendet som helhet handläggas av Försäkringskassan. ","1 avslutat sjukfall",6800,null,0]
["Skatteverket"]
["Sekretessmarkering och kvarskrivning","En sekretessmarkering gör det svårare för andra att ta del av personens personuppgifter i folkbokföringsregistret. Kallas i dagligt tal för skyddad identitet. Kvarskrivning fungerar som ett adresskydd när en person har flyttat till annan, hemlig adress. Den nya adressen framgår då inte.","1 ärende \n(medelhög resursåtgång)",3800,null,{"$f":"D116*E116","v":0}]
["Kronofogdemyndigheten"]
["Avskrivna skulder vid skuldsanering","När skuldsanering genomförs skrivs en stor del av de befintliga skulderna av, vilket gör att ekonomiska fodringar aldrig betalas tillbaka.","1 skuldsanering\n (genomsnittligt avskrivet skuldbelopp för all skuldsanering)",570000,null,{"$f":"D118*E118","v":0}]
["Handläggning skuldsanering","I fall där skuldsanering begärs sker en handläggning av ärendet för att fatta beslut om saneringen ska godkännas eller ej. ","1 avslutat ärende",14200,null,{"$f":"D119*E119","v":0}]
["Brottsoffermyndigheten"]
["Brottsskadeersättning för våldtäkt","Om en dömd gärningsperson inte kan betala skadeståndet och den utsatta inte har någon försäkring som täcker skadan, kan den utsatta i vissa fall få ersättning från staten. Sådan ersättning kallas brottsskadeersättning. Insatsen/aktiviteten innebär en utbetalning.","1 utbetalning av ersättning","[skriv själv in summan här]","[skriv själv in summan här]",null,null,100000,"Brottet utgörs av våldtäkt i bostaden.",250000,"Brottet utgörs av upprepade våldtäkter under flera års tid."]
["Brottsskadeersättning våld i nära relation","Om en dömd gärningsperson inte kan betala skadeståndet och den utsatta inte har någon försäkring som täcker skadan, kan den utsatta i vissa fall få ersättning från staten. Sådan ersättning kallas brottsskadeersättning. Insatsen/aktiviteten innebär en utbetalning.","1 utbetalning av ersättning","[skriv själv in summan här]","[skriv själv in summan här]",null,null,10000,"Handlar om misshandel vid ett eller enstaka tillfällen med örfilar, knytnävsslag etcetera.",100000,"Mycket grovt våld vid ett eller flera tillfällen med tydliga kränkningsinslag eller uppsåt att döda."]
["PRIVAT, OFFENTLIG OCH IDEELL SEKTOR"]
["Arbetsgivare"]
["Sjukskrivning (dag 1-14)","När en arbetstagare sjukanmäler sig betalar arbetsgivaren lön (sjuklön) till arbetstagaren från dag 2 till och med dag 14. Ofta krävs ett läkarintyg efter ungefär halva denna period för fortsatt utbetalning av sjuklön. Från dag 15 är det Försäkringskassan som betalar ut eventuell ersättning vid sjukdom. ","1 sjuklönedag \n(inkl. sociala avgifter, utifrån medianlön)",1800,null,{"$f":"D125*E125","v":0}]
["Företagshälsovård","Tillhandahåller arbetsgivaren företagshälsovård till sina anställda kan sådan komma att användas för att stödja utifrån våld i nära relation. I det flesta fall sker dock sådant stöd via det offentliga systemet. Insatsen/aktiviteten innebär en utbetalning.","1 avslutat ärende\n (utifrån icke fysiskt belastande yrken)",10000,null,{"$f":"D126*E126","v":0}]
["Vikarie","När en arbetstagare sjukanmäler sig behöver den ofta ersättas av en vikarie, vilket innebär extra kostnader för arbetsgivaren.","1 arbetsdag vikarie (inkl. sociala avgifter, utifrån medianlön)                                         ",{"$f":"1800","v":1800},null,{"$f":"D127*E127","v":0}]
["TOTALSUMMA",null,null,null,null,{"$f":"SUM(F4:F126)","v":0}]

{"sheet":"Detaljerad innehållsförteckning","index":2,"n_rows":128,"n_cols":4,"rows_kept":128,"cut":false,"hidden":true,"merged":[[73,1,73,3],[110,2,110,3],[114,2,114,3],[117,2,117,3],[123,1,123,3],[75,1,75,3],[76,2,76,3],[79,2,79,3],[81,1,81,3],[82,2,82,3],[91,2,91,3],[124,2,124,3],[93,2,93,3],[96,2,96,3],[99,1,99,3],[100,2,100,3],[102,2,102,3],[105,2,105,3],[70,2,70,3],[2,1,2,3],[3,2,3,3],[11,2,11,3],[43,1,43,3],[44,2,44,3],[49,1,49,3],[50,2,50,3],[54,2,54,3],[65,2,65,3],[68,2,68,3]]}
[]
[null,"Innehållsförteckning"]
[null,"KOMMUN"]
[null,null,"Skola och förskola"]
[null,null,null,"Besök skolläkare"]
[null,null,null,"Byte av skola"]
[null,null,null,"Elevvårdskonferens"]
[null,null,null,"Ledsagning till aktiviteter"]
[null,null,null,"Orosanmälan (inklusive involvering i eventuell utredning)"]
[null,null,null,"Samtal skolsköterska"]
[null,null,null,"Stödsamtal"]
[null,null,"Socialtjänst"]
[null,null,null,"Behandlingshem"]
[null,null,null,"Boendestöd"]
[null,null,null,"Boendestöd (indirekt)"]
[null,null,null,"Byte av kommun"]
[null,null,null,"Daglig verksamhet (indirekt)"]
[null,null,null,"Ekonomiskt bistånd"]
[null,null,null,"Familjebehandling"]
[null,null,null,"Familjehemsplacering"]
[null,null,null,"Familjerådgivning"]
[null,null,null,"Förhandsbedömning"]
[null,null,null,"Genomgång av säkerhet"]
[null,null,null,"Gruppsamtal"]
[null,null,null,"Gruppsamtal (för förövaren)"]
[null,null,null,"Handläggning ekonomiskt bistånd"]
[null,null,null,"Hemtjänst (indirekt)"]
[null,null,null,"Hjälp med ny bostad (ej skyddat boende)"]
[null,null,null,"Kontaktperson"]
[null,null,null,"Ledsagning till aktiviteter"]
[null,null,null,"Orosanmälan"]
[null,null,null,"Praktiskt stöd i akut situation"]
[null,null,null,"Riskbedömning"]
[null,null,null,"Rådgivande/stödjande samtal"]
[null,null,null,"Samarbetssamtal"]
[null,null,null,"Skyddat boende"]
[null,null,null,"Stödjande samtal (för förövaren)"]
[null,null,null,"Tolk"]
[null,null,null,"Umgängesstöd"]
[null,null,null,"Utredning barn som bevittnat/upplevt våld"]
[null,null,null,"Utredning våldsutsatt vuxen"]
[null,null,null,"Utredning vårdnad av barn"]
[null,null,null,"Utredningshem"]
[null,"KOMMUN OCH REGION"]
[null,null,"Ungdomsmottagning"]
[null,null,null,"Kartläggande samtal"]
[null,null,null,"Stödsamtal enskilt"]
[null,null,null,"Stödsamtal grupp"]
[null,null,null,"Gynekologisk undersökning"]
[null,"REGION"]
[null,null,"Primärvård"]
[null,null,null,"Allmänläkarvård"]
[null,null,null,"Mödrahälsovård (inklusive gynekologisk undersökning)"]
[null,null,null,"Sjuksköterskevård"]
[null,null,"Specialiserad vård"]
[null,null,null,"Akutmottagning psyk"]
[null,null,null,"Akutmottagning somatisk"]
[null,null,null,"Ambulans"]
[null,null,null,"Specialiserad psykiatrisk dagsjukvård"]
[null,null,null,"Specialiserad psykiatrisk mottagningsverksamhet"]
[null,null,null,"Specialiserad psykiatrisk slutenvård"]
[null,null,null,"Specialiserad psykiatrisk slutenvård för barn och ungdomar (BUP)"]
[null,null,null,"Specialiserad somatisk \nslutenvård"]
[null,null,null,"Specialiserad somatisk dagsjukvård"]
[null,null,null,"Specialiserad somatisk mottagningsverksamhet"]
[null,null,"Tandvård"]
[null,null,null,"Allmäntandvård"]
[null,null,null,"Specialisttandvård"]
[null,null,"Rättspsykiatrisk avdelning/klinik"]
[null,null,null,"Rättspsykiatrisk vård"]
[null,null,"Oberoende av verksamhet"]
[null,null,null,"Läkemedel"]
[null,null,null,"Tolk"]
[null,"SAMVERKAN MELLAN OLIKA VERKSAMHETER"]
[null,null,null,"Samråd"]
[null,"IDEELLA ORGANISATIONER"]
[null,null,"Kvinnojour"]
[null,null,null,"Skyddat boende"]
[null,null,null,"Stödjande aktivitet"]
[null,null,"Brottsofferjour"]
[null,null,null,"Stöd från brottsofferjour"]
[null,"STAT"]
[null,null,"Försäkringskassan"]
[null,null,null,"Aktivitetsersättning"]
[null,null,null,"Aktivitetsersättning handläggning"]
[null,null,null,"Rehabiliteringspenning"]
[null,null,null,"Rehabiliteringspenning handläggning "]
[null,null,null,"Sjukersättning"]
[null,null,null,"Sjukersättning handläggning"]
[null,null,null,"Sjukpenning"]
[null,null,null,"Sjukpenning handläggning"]
[null,null,"Skatteverket"]
[null,null,null,"Sekretessmarkering och kvarskrivning"]
[null,null,"Kronofogdemyndigheten"]
[null,null,null,"Avskrivna skulder vid skuldsanering"]
[null,null,null,"Handläggning skuldsanering"]
[null,null,"Brottsoffermyndigheten"]
[null,null,null,"Brottsskadeersättning för våldtäkt"]
[null,null,null,"Brottsskadeersättning våld i nära relation"]
[null,"RÄTTSVÄSENDE"]
[null,null,"Polisen"]
[null,null,null,"Utredningsverksamhet (inklusive lagföring)"]
[null,null,"Åklagarmyndigheten"]
[null,null,null,"Sexualbrott"]
[null,null,null,"Våldsbrott"]
[null,null,"Domstol"]
[null,null,null,"Brottsmål - tingsrätt"]
[null,null,null,"Brottsmål - hovrätt"]
[null,null,null,"Tvistemål - tingsrätt"]
[null,null,null,"Tvistemål - hovrätt"]
[null,null,"Kriminalvård"]
[null,null,null,"Anstalt"]
[null,null,null,"Frivård"]
[null,null,null,"Häkte"]
[null,null,"Advokatbyrå"]
[null,null,null,"Domstolsprocess målsägarbiträde (inklusive stöd under förundersökning)"]
[null,null,null,"Domstolsprocess försvarsadvokat (inklusive stöd under förundersökning)"]
[null,null,"Rättsmedicinalverket"]
[null,null,null,"§ 7-undersökning"]
[null,null,null,"Kroppsundersökning"]
[null,null,null,"Rättspsykiatrisk undersökning av häktad"]
[null,null,null,"Rättspsykiatrisk undersökning av person på fri fot"]
[null,null,null,"Yttrande"]
[null,"PRIVAT, OFFENTLIG OCH IDEELL SEKTOR"]
[null,null,"Arbetsgivare"]
[null,null,null,"Sjukskrivning (dag 1-14)"]
[null,null,null,"Företagshälsovård"]
[null,null,null,"Vikarie"]

{"sheet":"Kommun","index":3,"n_rows":284,"n_cols":10,"rows_kept":284,"cut":false,"hidden":false,"merged":[[8,7,9,7],[13,7,14,7],[20,7,21,7],[37,3,39,5],[179,3,181,5],[158,3,159,5],[138,3,139,5],[163,3,164,5],[168,3,169,5],[173,3,175,5],[68,3,70,5],[51,3,51,5],[58,3,59,5],[31,3,33,5],[13,3,14,5],[18,3,21,5],[25,3,26,5],[9,3,9,5],[29,3,30,6],[43,3,45,5],[178,21,181,22],[81,3,81,5],[92,3,92,5],[104,3,105,5],[98,3,99,5],[123,3,125,5],[146,3,147,5],[129,3,130,5],[134,3,135,5],[87,3,88,5],[133,9,136,15],[138,9,143,15],[199,3,200,5],[185,3,186,5],[203,3,204,5],[190,7,191,7],[63,3,64,5],[235,3,235,8],[74,3,77,5],[1,2,1,5],[227,3,227,4],[6,2,6,5],[52,3,52,5],[221,3,221,5],[215,3,216,5],[210,3,211,5],[205,3,206,5],[110,3,113,5],[117,3,119,5],[140,3,142,5],[152,3,154,5],[195,3,195,5],[190,3,191,5],[145,9,150,15],[97,9,102,15],[103,9,107,15],[109,9,114,15],[116,9,120,15],[80,9,85,15],[86,9,89,15],[91,9,96,15],[122,9,126,15],[128,9,131,15],[151,9,155,15],[157,9,160,15],[162,9,166,15],[167,9,171,15],[8,9,10,15],[12,9,15,15],[17,9,21,15],[24,9,26,15],[29,9,33,15],[36,9,40,15],[42,9,46,15],[51,9,55,15],[57,9,61,15],[62,9,65,15],[67,9,70,15],[73,9,79,15],[203,9,208,15],[209,9,213,15],[214,9,219,15],[220,9,224,15],[172,9,176,15],[178,9,182,15],[184,9,187,15],[189,9,192,15],[194,9,197,15],[198,9,201,15]]}
[]
[null,null,"Kommun"]
[null,null,null,"Tryck Tab eller Enter för att hoppa mellan de ifyllbara cellerna (vita)."]
[null,null,null,"En sammanställning av allt som fyllts i presenteras längst ner i bladet."]
[]
[]
[null,null,"Skola och förskola "]
[]
[null,null,null,"Besök skolläkare",null,null,null,"Antal timmar:",null,"I vissa fall remitteras barnet/ungdomen till skolläkare för vidare behandling."]
[null,null,null,"Antagen timkostnad"]
[null,null,null,"Kostnad:",{"$f":"1900*1.0846","v":2060.7400000000002}]
[]
[null,null,null,"Byte av skola",null,null,null,null,null,"När barn behöver byta skola är det framför allt rektorn som blir involverad, både på mottagande och avlämnande skola."]
[null,null,null,"Kostnad per skolbyte (2 rektorer,1,5 timmar var)",null,null,null,"Antal skolbyten:"]
[]
[null,null,null,"Kostnad:",{"$f":"3700*1.0846","v":4013.02}]
[]
[null,null,null,"Elevvårdskonferens",null,null,null,null,null,"När problemet uppdagas träffas rektor, skolsköterska och kurator i elevvårdskonferensen för att diskutera hur situationen ska hanteras. Ibland deltar även lärare."]
[null,null,null,"Antagen kostnad per elevvårdskonferens (kurator, skolsköterska, rektor, 1,5 timmar var)"]
[]
[null,null,null,null,null,null,null,"Antal elevvårdskonferenser:"]
[]
[null,null,null,"Kostnad:",{"$f":"4500*1.0846","v":4880.7}]
[]
[null,null,null,"Ledsagning till aktiviteter",null,null,null,null,null,"Ledsagning sker genom att en person som barnet/ungdomen litar på kan följa med till aktiviteter, exempelvis mellan lektioner eller till vårdcentral. Sker exempelvis av fritidsledare."]
[null,null,null,"Antagen ledsagning (fritidsledare, 0,5 timme)"]
[null,null,null,null,null,null,null,"Antal ledsagningar:"]
[null,null,null,"Kostnad:",{"$f":"350*1.0846","v":379.61}]
[]
[null,null,null,"Orosanmälan (inkl involvering i eventuell utredning)",null,null,null,null,null,"Orosanmälan kan genomföras av samtliga professioner, men ofta är skolsköterskan involverad."]
[]
[null,null,null,"Antagen kostnad per orosanmälan: 1 timme \n(skolsköterska)"]
[]
[null,null,null,null,null,null,null,"Antal orosanmälningar:"]
[null,null,null,"Kostnad:",{"$f":"950*1.0846","v":1030.3700000000001}]
[]
[null,null,null,"Samtal skolsköterska",null,null,null,null,null,"Skolsköterskan kan genom samtal fånga upp problematiken. Utöver detta förekommer det att barn som upplever våld söker vård för relaterade åkommor som inte direkt kopplas till våld, exempelvis magont och oro. Resursåtgång för detta är inte inkluderat här."]
[null,null,null,"Antagen kostnad per samtal (skolsköterska, 1,5 timmar)"]
[]
[null,null,null,null,null,null,null,"Antal samtal:"]
[null,null,null,"Kostnad:",{"$f":"1400*1.0846","v":1518.44}]
[]
[null,null,null,"Stödsamtal",null,null,null,null,null,"Stödsamtal genomförs oftast av kurator, men mer informellt kan det handla om andra professioner som pratar med barnet/ungdomen för att upprätta ett förtroende."]
[null,null,null,"Antagen kostnad per stödsamtal, (kurator, 1 timme)"]
[]
[null,null,null,null,null,null,null,"Antal stödsamtal:"]
[null,null,null,"Kostnad:",{"$f":"850*1.0846","v":921.91}]
[]
[]
[null,null,"Socialtjänst"]
[]
[null,null,null,"Behandlingshem",null,null,null,null,null,"Ett behandlingshem handlar här om en plats som fokuserar mycket på att utveckla föräldraförmåga. Är en relativt ovanlig insats avseende våld i nära relationer. Det kan också röra sig om HVB-hem för personer som utsatts för våld i familjen. insatsen/aktiviteten innebär en utbetalning."]
[null,null,null,"Enhet: 1 månad",null,null,null,"Antal månad/er:"]
[null,null,null,"Kostnad: ",{"$f":"90000*1.0846","v":97614}]
[]
[]
[]
[null,null,null,"Boendestöd",null,null,null,null,null,"Boendestöd utgörs av en person som ser till att den utsattas lägenhet är i gott skick, hjälper till att betala räkningar, ser till att vardagen flyter på, tar vid behov kontakt med vården etcetera. Den utsatta kan ha funktionsnedsättning eller psykisk nedsatthet. insatsen/aktiviteten innebär en utbetalning."]
[null,null,null,"Enhet: 1 månad (10–12 timmar, boendestödjare)"]
[null,null,null,null,null,null,null,"Antal månad/er:"]
[null,null,null,"Kostnad:",{"$f":"7700*1.0846","v":8351.42}]
[]
[null,null,null,"Boendestöd (indirekt)",null,null,null,null,null,"Boendestödet kan vara en kanal för observation utifrån en omsorgsbrist pga. våld.  Kan även användas strategiskt för att skapa förtroende och vid misstanke om våld försöka få mer information om det och hålla parterna isär. "]
[null,null,null,"Enhet: 1 besök (1 timme, boendestödjare)"]
[null,null,null,null,null,null,null,"Antal besök:"]
[null,null,null,"Kostnad:",{"$f":"700*1.0846","v":759.22}]
[]
[null,null,null,"Byte av kommun",null,null,null,null,null,"Behöver den utsatta byta kommun behöver denna transporteras långt bort av två socialsekreterare, och två nya socialsekreterare ska ta vid. Byte av kommun innebär alltid en hög resursåtgång."]
[null,null,null,"Enhet:  1 byte av kommun (4 socialsekreterare, genomsnitt 10 timmar var)"]
[]
[null,null,null,null,null,null,null,"Antal byten:"]
[null,null,null,"Kostnad:",{"$f":"33100*1.0846","v":35900.26}]
[]
[null,null,null,"Daglig verksamhet (indirekt)",null,null,null,null,null,"Daglig verksamhet är en kanal för att notera tecken på våld i nära relation. Kan handla om att använda den strategiskt för att skapa förtroende och vid misstanke om våld försöka få mer information om det och hålla parterna isär. "]
[null,null,null,"Enhet: 1 samtal, 1,5 timme (omvårdnadspersonal/ arbetskonsulent/ biståndshandläggare/ kurator)"]
[]
[]
[null,null,null,null,null,null,null,"Antal samtal:"]
[null,null,null,"Kostnad:",{"$f":"1200*1.0846","v":1301.52}]
[]
[null,null,null,"Ekonomiskt bistånd",null,null,null,null,null,"Ekonomiskt bistånd handlar om faktisk utbetalning till den utsatta. Kan vara allt från mindre akut stöd i direkt anslutning till våldssituationen, till stadigvarande utbetalning av fullt ekonomiskt bistånd för att ha pengar att leva för. insatsen/aktiviteten innebär en utbetalning"]
[null,null,null,"Enhet: Total utbetalning",null,null,null,"Totalsumma:"]
[null,null,null,"Kostnad:"]
[]
[]
[]
[null,null,null,"Familjebehandling",null,null,null,null,null,"Familjebehandling handlar om familjeinriktat stöd för att bland annat stödja i rutiner och förbättra föräldraskap. Genomförs av exempelvis en familjeterapeut. "]
[null,null,null,"Enhet: 1 samtal (familjeterapeut, 2 timmar)"]
[null,null,null,null,null,null,null,"Antal samtal:"]
[null,null,null,"Kostnad:",{"$f":"1700*1.0846","v":1843.82}]
[]
[null,null,null,"Familjehemsplacering",null,null,null,null,null,"Barnet/barnen kan vid behov placeras i familjehem. Här handlar det om temporär placering tills dess att situationen för föräldrarna har stabiliserats. Kan i vissa fall även handla om unga vuxna i fall då det handlar om hedersrelaterat våld. Insatsen/aktiviteten innebär en utbetalning."]
[null,null,null,"Enhet: 1 månad",null,null,null,"Antal månad/er:"]
[null,null,null,"Kostnad:",{"$f":"54000*1.0846","v":58568.4}]
[]
[]
[]
[null,null,null,"Familjerådgivning",null,null,null,null,null,"Familjerådgivning utgörs av parterapi där fokus ligger på att lösa relationsproblem. Det kan vara par som vill förbättra sin relation och fortsätta leva tillsammans eller par där en eller båda vill separera. Det kan också handla om hjälp och stöd i föräldraskapet. insatsen/aktiviteten kan innebär en utbetalning."]
[null,null,null,"Enhet: 1 samtal \n(socionom, 2 timmar)"]
[null,null,null,null,null,null,null,"Antal samtal:"]
[null,null,null,"Kostnad:",{"$f":"1700*1.0846","v":1843.82}]
[]
[]
[null,null,null,"Förhandsbedömning",null,null,null,null,null,"När ett ärenden kommer in till socialtjänsten görs en förhandsbedömning där det tas ställning till vad som bör ske i ärendet. Utgår vanligen från ett standardiserat formulär utifrån riskbedömning, tidigare kontakter med socialtjänsten etcetera.  "]
[null,null,null,"Enhet: 1 timme (socialsekreterare)"]
[null,null,null,null,null,null,null,"Antal timmar:"]
[null,null,null,"Kostnad:",{"$f":"850*1.0846","v":921.91}]
[]
[]
[null,null,null,"Genomgång av säkerhet",null,null,null,null,null,"Denna säkerhetsgenomgång innefattar bland annat skalskydd för lägenheten, åtgärdslista vid kontaktförsök, hur lägenhet ska lämnas och hur kvinnan ska agera när hon går på stan."]
[null,null,null,"Enhet: 1 säkerhetsgenomgång (behandlingssekreterare eller kurator, 1,5 timmar)"]
[]
[]
[null,null,null,null,null,null,null,"Antal säkerhetsgenomgångar:"]
[null,null,null,"Kostnad:",{"$f":"1300*1.0846","v":1409.98}]
[]
[null,null,null,"Gruppsamtal",null,null,null,null,null,"Samtalsstöd i grupp till utsatta, ofta sex till åtta deltagare per grupp. Syftar till att ge stöd på olika sätt. "]
[null,null,null,"Enhet: 1 samtal (kurator/ behandlingssekreterare, 2 timmar)"]
[]
[null,null,null,null,null,null,null,"Antal gruppsamtal:"]
[null,null,null,"Kostnad:",{"$f":"1700*1.0846","v":1843.82}]
[]
[null,null,null,"Gruppsamtal (för förövaren)",null,null,null,null,null,"Samtalsstöd i grupp till förövare, ofta från sex till åtta deltagare. "]
[null,null,null,"Enhet: 1 samtal \n(2 socialsekreterare, \n1,5 timmar var)\n"]
[]
[null,null,null,null,null,null,null,"Antal gruppsamtal (förövare):"]
[null,null,null,"Kostnad:",{"$f":"2500*1.0846","v":2711.5}]
[]
[null,null,null,"Handläggning ekonomiskt bistånd",null,null,null,null,null,"En ansökan om ekonomiskt bistånd kräver handläggning av en socialsekreterare, vilket även innefattar beslut om godkännande eller avslag. "]
[null,null,null,"Enhet: 1 timme (socialsekreterare)"]
[null,null,null,null,null,null,null,"Antal timmar:"]
[null,null,null,"Kostnad:",{"$f":"850*1.0846","v":921.91}]
[]
[null,null,null,"Hemtjänst (indirekt)",null,null,null,null,null,"Hemtjänsten är en kanal för att notera tecken på våld i nära relation. Kan handla om att använda det strategiskt för att skapa förtroende och vid misstanke om våld försöka få mer information om det och hålla parterna isär. "]
[null,null,null,"Enhet: 1 timme (hemtjänstvårdare)"]
[null,null,null,null,null,null,null,"Antal timmar:"]
[null,null,null,"Kostnad:",{"$f":"700*1.0846","v":759.22}]
[]
[null,null,null,"Hjälp med ny bostad (ej skyddat boende)",null,null,null,null,null,"Personal på skyddat boende hjälper den utsatta att registrera sig på alla bostadsbolag och bevaka möjligheter. När den utsatta får ett boende behövs en träff med hyresvärden, en kartläggning för att fastställa om det är en lämplig bostad att flytta till, samt hjälp med flytt."]
[]
[null,null,null,"Enhet: 1 bostadsärende (kurator, socionom eller liknande, 10 timmar)"]
[]
[null,null,null,null,null,null,null,"Antal bostadsärenden:"]
[null,null,null,"Kostnad:",{"$f":"8300*1.0846","v":9002.18}]
[]
[null,null,null,"Kontaktperson",null,null,null,null,null,"En kontaktpersonen fungerar som en vän och medmänniska till en ungdom eller vuxen, exempelvis när en individ kommer ny till orten. Genom regelbundna träffar byggs en relation och kontaktpersonen fungerar som en stödperson. Det handlar inte om kontaktperson på skyddat boende. insatsen/aktiviteten innebär en utbetalning."]
[null,null,null,"Enhet:  1 månad (baserad på 3 kontakter per vecka)"]
[null,null,null,null,null,null,null,"Antal månad/er:"]
[null,null,null,"Kostnad:",{"$f":"1200*1.0846","v":1301.52}]
[]
[]
[null,null,null,"Ledsagning till aktiviteter",null,null,null,null,null,"Ledsagning innebär att en person följer med den utsatta till olika myndigheter etcetera. Det är behandlingssekreterare på skyddat boende som genomför detta."]
[null,null,null,"Enhet: 1 ledsagning (behandlingssekreterare, 1,5 timmar)"]
[]
[null,null,null,null,null,null,null,"Antal ledsagningar:"]
[null,null,null,"Kostnad:",{"$f":"1200*1.0846","v":1301.52}]
[]
[null,null,null,"Orosanmälan",null,null,null,null,null,"När en orosanmälan kommer in ska den tas emot och skyndsamt hanteras (innefattar ej eventuell utredning)."]
[null,null,null,"Enhet: 1 orosanmälan (handläggare, 0,5 timmar)"]
[null,null,null,null,null,null,null,"Antal orosanmälningar:"]
[null,null,null,"Kostnad:",{"$f":"400*1.0846","v":433.84000000000003}]
[]
[null,null,null,"Praktiskt stöd i akut situation",null,null,null,null,null,"Detta praktiska stöd handlar om att få kvinnan i säkerhet. Kan innefatta hjälp att hämta personliga tillhörigheter, hämta på förskolan, samt andra akuta åtgärder. "]
[null,null,null,"Enhet: 1 timme (socialsekreterare)"]
[null,null,null,null,null,null,null,"Antal timmar:"]
[null,null,null,"Kostnad:",{"$f":"850*1.0846","v":921.91}]
[]
[null,null,null,"Riskbedömning",null,null,null,null,null,"En riskdömningen sker i anslutning till en utredning för att bedöma graden av risk för den utsatta. Görs av socialsekreterare. "]
[null,null,null,"Enhet: 1 timme (socialsekreterare)"]
[null,null,null,null,null,null,null,"Antal timmar:"]
[null,null,null,"Kostnad:",{"$f":"850*1.0846","v":921.91}]
[]
[null,null,null,"Rådgivande/stödjande samtal",null,null,null,null,null,"Detta innefattar enskilda samtal med den utsatta för att ge denna stöd i situationen."]
[null,null,null,"Enhet: 1 samtal (kurator/ behandlingssekreterare, 2 timmar)"]
[]
[null,null,null,null,null,null,null,"Antal samtal (rådgivande):"]
[null,null,null,"Kostnad:",{"$f":"1700*1.0846","v":1843.82}]
[]
[null,null,null,"Samarbetssamtal",null,null,null,null,null,"Samarbetssamtal syftar till att få två föräldrar att samarbeta bättre. Har koppling till vårdnadstvist i någon form, men inte nödvändigtvis i domstol. Är ofta olämpligt att föräldrarna träffas för dessa samtal om det finns en våldsproblematik. Då kan samtal med föräldrarna ske var för sig. "]
[null,null,null,"Enhet: 1 samtal (socialsekreterare, 2,5 timmar)"]
[]
[null,null,null,null,null,null,null,"Antal samtal:"]
[null,null,null,"Kostnad:",{"$f":"2100*1.0846","v":2277.66}]
[]
[null,null,null,"Skyddat boende",null,null,null,null,null,"Boende där den utsatta kan vara under trygga och skyddade omständigheter. Dessa har olika innehåll och säkerhetsgrad, allt från grundläggande boende, till väldigt hög säkerhet. insatsen/aktiviteten kan innebära en utbetalning."]
[null,null,null,"Enhet: 1 dygn (medelhög säkerhetsgrad)"]
[null,null,null,null,null,null,null,"Antal dygn:"]
[null,null,null,"Kostnad:",{"$f":"3000*1.0846","v":3253.8}]
[]
[null,null,null,"Stödjande samtal (för förövaren)",null,null,null,null,null,"Enskilda stödjande samtal med förövaren i syfte att hjälpa och ge underlag för utveckling. Sker av socialsekreterare."]
[null,null,null,"Enhet: 1 samtal (socialsekreterare, 2 timmar)",null,null,null,"Antal stödjande samtal (förövaren):"]
[]
[null,null,null,"Kostnad:",{"$f":"1700*1.0846","v":1843.82}]
[]
[null,null,null,"Tolk",null,null,null,null,null,"I de fall den utsatta eller förövaren inte har tillräckligt god språkkunskaper i de språk som kommunarbetare talar används tolk. insatsen/aktiviteten innebär vanligen en utbetalning."]
[null,null,null,"Enhet: 1 timme (tolk)",null,null,null,"Antal timmar:"]
[null,null,null,"Kostnad:",{"$f":"550*1.0846","v":596.53}]
[]
[null,null,null,"Umgängesstöd",null,null,null,null,null,"Umgängesstöd kan vara aktuellt när det finns våldsutsatta barn med i bilden. Våldsutövaren får inte träffa barnet själv, utan måste göra det tillsammans med en socialsekreterare. "]
[null,null,null,"Enhet: 1 timme (socialsekreterare)"]
[null,null,null,null,null,null,null,"Antal timmar:"]
[null,null,null,"Kostnad:",{"$f":"850*1.0846","v":921.91}]
[]
[null,null,null,"Utredning barn som bevittnat/ upplevt våld",null,null,null,null,null,"Utredning ska inledas när ett barn misstänks ha blivit utsatt för våld eller bevittnat våld av en närstående.  Ska ge beslutsunderlag för lämplig väg framåt, vilket kan innebära ett tvångsomhändertagande av barnet/ungdomen. Genomförs av socialsekreterare. "]
[]
[null,null,null,"Enhet: 1 timme (socialsekreterare)"]
[null,null,null,null,null,null,null,"Antal timmar:"]
[null,null,null,"Kostnad:",{"$f":"850*1.0846","v":921.91}]
[]
[null,null,null,"Utredning våldsutsatt vuxen",null,null,null,null,null,"Utredning som utgår från ett antal konkreta frågor gällande bland annat individens sociala liv, hälsa och vad individen blivit utsatt för. Genomförs av socialsekreterare."]
[null,null,null,"Enhet: 1 timme (socialsekreterare)"]
[null,null,null,null,null,null,null,"Antal timmar:"]
[null,null,null,"Kostnad:",{"$f":"2100*1.0846","v":2277.66}]
[]
[null,null,null,"Utredning vårdnad av barn",null,null,null,null,null,"Vid en separation kan en utredning om vårdnad bli aktuell. En sådan innefattar bland annat samtal med respektive förälder, barnet/barnen, yrkespersoner i barnets närhet samt hembesök. Genomförs av familjerättssekreterare/socialsekreterare i syfte att skapa beslutsunderlag i vårdnadsfråga. "]
[null,null,null,"Enhet: 1 timme (socialsekreterare)"]
[null,null,null,null,null,null,null,"Antal timmar:"]
[null,null,null,"Kostnad:",{"$f":"850*1.0846","v":921.91}]
[]
[]
[null,null,null,"Utredningshem",null,null,null,null,null,"En eller båda föräldrar är placerade med barnet för att utreda föräldrarnas omsorgsförmåga och barnets behov. Kan handla om att föräldrarna är där halva tiden var. Här inkluderas enbart själva utredningstiden. Utredningshem används ibland också som skyddat boende. Insatsen/aktiviteten innebär en utbetalning."]
[null,null,null,"Enhet: 2 månader",null,null,null,"Antal månader:"]
[null,null,null,"Kostnad:",{"$f":"284000*1.0846","v":308026.40000000002}]
[]
[]
[null,null,null,"Egen insats"]
[null,null,null,"Ange namn, enhet, kostnad och antal enheter"]
[null,null,null,"(Ange namn)"]
[]
[null,null,null,"Enhet:",null,null,null,"Antal enheter:"]
[null,null,null,"Kostnad:"]
[]
[]
[]
[]
[null,null,null,"Sammanställning av kostnader"]
[]
[null,null,null,"Skola och förskola"]
[null,null,null,{"$f":"D9","v":"Besök skolläkare"},null,null,null,null,{"$f":"H11*E11","v":0}]
[null,null,null,{"$f":"D13","v":"Byte av skola"},null,null,null,null,{"$f":"H16*E16","v":0}]
[null,null,null,{"$f":"D18","v":"Elevvårdskonferens"},null,null,null,null,{"$f":"H23*E23","v":0}]
[null,null,null,{"$f":"D25","v":"Ledsagning till aktiviteter"},null,null,null,null,{"$f":"H28*E28","v":0}]
[null,null,null,{"$f":"D30","v":"Orosanmälan (inkl involvering i eventuell utredning)"},null,null,null,null,{"$f":"H35*E35","v":0}]
[null,null,null,{"$f":"D37","v":"Samtal skolsköterska"},null,null,null,null,{"$f":"H41*E41","v":0}]
[null,null,null,{"$f":"D43","v":"Stödsamtal"},null,null,null,null,{"$f":"H47*E47","v":0}]
[null,null,null,"Skola och förskola",null,null,null,null,{"$f":"SUM(I239:I245)","v":0}]
[]
[null,null,null,"Socialtjänst"]
[null,null,null,{"$f":"D52","v":"Behandlingshem"},null,null,null,null,{"$f":"H54*E54","v":0}]
[null,null,null,{"$f":"D58","v":"Boendestöd"},null,null,null,null,{"$f":"H61*E61","v":0}]
[null,null,null,{"$f":"D63","v":"Boendestöd (indirekt)"},null,null,null,null,{"$f":"H66*E66","v":0}]
[null,null,null,{"$f":"D68","v":"Byte av kommun"},null,null,null,null,{"$f":"H72*E72","v":0}]
[null,null,null,{"$f":"D74","v":"Daglig verksamhet (indirekt)"},null,null,null,null,{"$f":"H79*E79","v":0}]
[null,null,null,{"$f":"D81","v":"Ekonomiskt bistånd"},null,null,null,null,{"$f":"H83*E83","v":0}]
[null,null,null,{"$f":"D87","v":"Familjebehandling"},null,null,null,null,{"$f":"H90*E90","v":0}]
[null,null,null,{"$f":"D92","v":"Familjehemsplacering"},null,null,null,null,{"$f":"H94*E94","v":0}]
[null,null,null,{"$f":"D98","v":"Familjerådgivning"},null,null,null,null,{"$f":"H101*E101","v":0}]
[null,null,null,{"$f":"D104","v":"Förhandsbedömning"},null,null,null,null,{"$f":"H107*E107","v":0}]
[null,null,null,{"$f":"D110","v":"Genomgång av säkerhet"},null,null,null,null,{"$f":"H115*E115","v":0}]
[null,null,null,{"$f":"D117","v":"Gruppsamtal"},null,null,null,null,{"$f":"H121*E121","v":0}]
[null,null,null,{"$f":"D123","v":"Gruppsamtal (för förövaren)"},null,null,null,null,{"$f":"H127*E127","v":0}]
[null,null,null,{"$f":"D129","v":"Handläggning ekonomiskt bistånd"},null,null,null,null,{"$f":"H132*E132","v":0}]
[null,null,null,{"$f":"D134","v":"Hemtjänst (indirekt)"},null,null,null,null,{"$f":"H137*E137","v":0}]
[null,null,null,{"$f":"D139","v":"Hjälp med ny bostad (ej skyddat boende)"},null,null,null,null,{"$f":"H144*E144","v":0}]
[null,null,null,{"$f":"D146","v":"Kontaktperson"},null,null,null,null,{"$f":"H149*E149","v":0}]
[null,null,null,{"$f":"D152","v":"Ledsagning till aktiviteter"},null,null,null,null,{"$f":"H156*E156","v":0}]
[null,null,null,{"$f":"D158","v":"Orosanmälan"},null,null,null,null,{"$f":"H161*E161","v":0}]
[null,null,null,{"$f":"D163","v":"Praktiskt stöd i akut situation"},null,null,null,null,{"$f":"H166*E166","v":0}]
[null,null,null,{"$f":"D168","v":"Riskbedömning"},null,null,null,null,{"$f":"H171*E171","v":0}]
[null,null,null,{"$f":"D173","v":"Rådgivande/stödjande samtal"},null,null,null,null,{"$f":"H177*E177","v":0}]
[null,null,null,{"$f":"D179","v":"Samarbetssamtal"},null,null,null,null,{"$f":"H183*E183","v":0}]
[null,null,null,{"$f":"D185","v":"Skyddat boende"},null,null,null,null,{"$f":"H188*E188","v":0}]
[null,null,null,{"$f":"D190","v":"Stödjande samtal (för förövaren)"},null,null,null,null,{"$f":"H193*E193","v":0}]
[null,null,null,{"$f":"D195","v":"Tolk"},null,null,null,null,{"$f":"H197*E197","v":0}]
[null,null,null,{"$f":"D199","v":"Umgängesstöd"},null,null,null,null,{"$f":"H202*E202","v":0}]
[null,null,null,{"$f":"D204","v":"Utredning barn som bevittnat/ upplevt våld"},null,null,null,null,{"$f":"H208*E208","v":0}]
[null,null,null,{"$f":"D210","v":"Utredning våldsutsatt vuxen"},null,null,null,null,{"$f":"H213*E213","v":0}]
[null,null,null,{"$f":"D215","v":"Utredning vårdnad av barn"},null,null,null,null,{"$f":"H218*E218","v":0}]
[null,null,null,{"$f":"D221","v":"Utredningshem"},null,null,null,null,{"$f":"H223*E223","v":0}]
[null,null,null,"Socialtjänst",null,null,null,null,{"$f":"SUM(I249:I279)","v":0}]
[]
[null,null,null,{"$f":"\"Egen insats\"&\" - \"&D228&\"\"","v":"Egen insats - (Ange namn)"},null,null,null,null,{"$f":"H231*E231","v":0}]
[]
[null,null,null,"Summa",null,null,null,null,{"$f":"I280+I246+I282","v":0}]

{"sheet":"Kommun & Region","index":4,"n_rows":45,"n_cols":10,"rows_kept":45,"cut":false,"hidden":false,"merged":[[1,2,1,6],[36,3,36,9],[22,9,24,13],[8,9,10,13],[13,3,14,5],[17,9,20,13],[18,3,19,5],[9,3,9,5],[28,3,28,4],[12,9,15,13],[23,3,23,5]]}
[]
[null,null,"Kommun och Region"]
[null,null,null,"Tryck Tab eller Enter för att hoppa mellan de ifyllbara cellerna (vita)."]
[null,null,null,"En sammanställning av allt som fyllts i presenteras längst ner i bladet."]
[]
[]
[null,null,"Ungdomsmottagning"]
[]
[null,null,null,"Kartläggande samtal",null,null,null,null,null,"När individen (ca 13-23 år) kommer till ungdomsmottagningen görs en kartläggning av vad anledningen till uppsökandet är. Utifrån det beslutas om det sker en remittering eller stödsamtal inom ungdomsmottagningen."]
[null,null,null,"Enhet: 1 samtal (kurator, 1 timme)",null,null,null,"Antal samtal:"]
[null,null,null,"Kostnad:",{"$f":"850*1.0846","v":921.91}]
[]
[null,null,null,"Stödsamtal enskilt",null,null,null,null,null,"Innefattar enskilda stödsamtal mellan individen (våldsutsatt eller våldsutförare) och kurator eller barnmorska. Kan exempelvis beröra hedersrelaterat våld,  partnervåld i unga år eller hot om internet-spridning av bilder."]
[null,null,null,"Enhet: 1 samtal (kurator/ barnmorska, 1 timme)"]
[null,null,null,null,null,null,null,"Antal samtal:"]
[null,null,null,"Kostnad:",{"$f":"850*1.0846","v":921.91}]
[]
[null,null,null,"Stödsamtal grupp",null,null,null,null,null,"Om det finns ett flertal individer inom den enskilda ungdomsmottagningen kan en samtalsgrupp skapas där stödsamtal sker i grupp snarare än enskilt. Ofta sex till åtta deltagare."]
[null,null,null,"Enhet: 1 samtal (2 kuratorer, 2 timmar var)"]
[null,null,null,null,null,null,null,"Antal samtal:"]
[null,null,null,"Kostnad:",{"$f":"(850*2*2)*1.0846","v":3687.64}]
[]
[null,null,null,"Gynekologisk undersökning",null,null,null,null,null,"Efter samtal med kurator kan individen genomgå en gynekologisk undersökning vid ungdomsmottagningen, exempelvis vid sexuellt våld eller könsstympning. "]
[null,null,null,"Enhet: 1 undersökning (gyn-läkare)",null,null,null,"Antal undersökningar:"]
[null,null,null,"Kostnad:",{"$f":"2000*1.0846","v":2169.1999999999998}]
[]
[null,null,null,"Egen insats"]
[null,null,null,"Ange namn, enhet, kostnad och antal enheter"]
[null,null,null,"(Ange namn)"]
[]
[null,null,null,"Enhet:",null,null,null,"Antal enheter:"]
[null,null,null,"Kostnad:"]
[]
[]
[]
[]
[null,null,null,"Sammanställning av kostnader"]
[]
[null,null,null,"Ungdomsmottagning"]
[null,null,null,{"$f":"D9","v":"Kartläggande samtal"},null,null,null,null,null,{"$f":"H11*E11","v":0}]
[null,null,null,{"$f":"D13","v":"Stödsamtal enskilt"},null,null,null,null,null,{"$f":"H16*E16","v":0}]
[null,null,null,{"$f":"D18","v":"Stödsamtal grupp"},null,null,null,null,null,{"$f":"H21*E21","v":0}]
[null,null,null,{"$f":"D23","v":"Gynekologisk undersökning"},null,null,null,null,null,{"$f":"H25*E25","v":0}]
[null,null,null,{"$f":"\"Egen insats\"&\" -\"&D29","v":"Egen insats -(Ange namn)"},null,null,null,null,null,{"$f":"E32*H32","v":0}]
[null,null,null,"Summa",null,null,null,null,null,{"$f":"SUM(J40:J44)","v":0}]

{"sheet":"Region","index":5,"n_rows":155,"n_cols":10,"rows_kept":155,"cut":false,"hidden":false,"merged":[[55,3,57,5],[53,9,58,15],[61,3,62,5],[84,9,86,15],[9,9,11,15],[33,9,35,15],[37,9,41,15],[43,9,46,15],[48,9,51,15],[13,9,16,15],[18,9,20,15],[24,9,27,15],[29,9,31,15],[92,9,94,15],[96,9,98,15],[100,9,102,15],[60,9,63,15],[65,9,67,15],[70,9,74,15],[80,9,82,15]]}
[]
[null,null,"Region"]
[null,null,null,"Tryck Tab eller Enter för att hoppa mellan de ifyllbara cellerna (vita)."]
[null,null,null,"En sammanställning av allt som fyllts i presenteras längst ner i bladet."]
[]
[]
[]
[null,null,"Primärvård"]
[]
[null,null,null,"Allmänläkarvård",null,null,null,null,null,"Allmänläkarvård (inklusive jour) innefattar  här mottagningsverksamhet på vårdcentral (eller hembesök) av läkare som är specialist i allmänmedicin."]
[null,null,null,"Enhet: 1 vårdkontakt",null,null,null,"Antal vårdkontakt/er:"]
[null,null,null,"Kostnad:",{"$f":"1500*1.0846","v":1626.9}]
[]
[null,null,null,"Mödrahälsovård ",null,null,null,null,null,"I mödrahälsovård ingår gynekologiska undersökningar, mammografier, för- och eftervård av gravida kvinnor, samt preventivmedelsrådgivning i anslutning till graviditet. Basal mödrahälsovård som bedrivs på sjukhus redovisas också här."]
[null,null,null,"(inklusive gynekologisk undersökning)"]
[null,null,null,"Enhet: 1 vårdkontakt",null,null,null,"Antal vårdkontakt/er:"]
[null,null,null,"Kostnad:",{"$f":"2000*1.0846","v":2169.1999999999998}]
[]
[null,null,null,"Sjuksköterskevård",null,null,null,null,null,"Sjuksköterskevård (inklusive jour) handlar här om mottagnings- och hembesök av sjuksköterska. "]
[null,null,null,"Enhet: 1 vårdkontakt",null,null,null,"Antal vårdkontakt/er:"]
[null,null,null,"Kostnad:",{"$f":"500*1.0846","v":542.29999999999995}]
[]
[null,null,"Specialisterad vård"]
[]
[null,null,null,"Akutmottagning psyk",null,null,null,null,null,"Akutmottagningen genomför bedömningar av det psykiatriska akuttillstånd, vårdbehov samt eventuella behov av inläggningar på vårdavdelning. Utifrån våld i nära relationer är akutmottagningen aktuell för både den utsatta och förövaren."]
[null,null,null,"Enhet: 1 vårdkontakt",null,null,null,"Antal vårdkontakt/er:"]
[null,null,null,"Kostnad:",{"$f":"3800*1.0846","v":4121.4800000000005}]
[]
[]
[null,null,null,"Akutmottagning somatisk",null,null,null,null,null,"Akutmottagningen gör bedömningar av de sökande utifrån ett somatiskt (fysiskt) perspektiv. För våld i nära relationer handlar det huvudsakligen om att den utsatta behöver söka akut vård på grund av fysisk skada."]
[null,null,null,"Enhet: 1 vårdkontakt",null,null,null,"Antal vårdkontakt/er:"]
[null,null,null,"Kostnad:",{"$f":"2600*1.0846","v":2819.96}]
[]
[null,null,null,"Ambulans",null,null,null,null,null,"Ambulansen utgörs av ett sjuktransportmedel (som bil, båt eller helikopter) försedd med medicinsk utrustning och bemannade med ambulanssjukvårdare och/eller sjuksköterska med vidareutbildning."]
[null,null,null,"Enhet: 1 resa (tur och retur)",null,null,null,"Antal resor:"]
[null,null,null,"Kostnad:",{"$f":"3300*1.0846","v":3579.18}]
[]
[null,null,null,"Specialiserad psykiatrisk",null,null,null,null,null,"Dagsjukvården vänder sig till personer med psykiska problem som är för svåra för primärvården att hantera, men inte så omfattande att det krävs slutenvård. Avseende våld i nära relationer kan detta vara aktuellt både för den utsatta och förövaren."]
[null,null,null,"dagsjukvård"]
[null,null,null,"Enhet: 1 vårdkontakt",null,null,null,"Antal vårdkontakt/er:"]
[null,null,null,"Kostnad:",{"$f":"4300*1.0846","v":4663.78}]
[]
[]
[null,null,null,"Specialiserad psykiatrisk",null,null,null,null,null,"Specialiserad psykiatrisk vård omfattar områden som allmänpsykiatri, barn- och ungdomspsykiatri och beroendevård. Mottagningsverksamheten innefattar möten med specialister för konsultation."]
[null,null,null,"mottagningsverksamhet"]
[null,null,null,"Enhet: 1 vårdkontakt",null,null,null,"Antal vårdkontakt/er:"]
[null,null,null,"Kostnad:",{"$f":"4800*1.0846","v":5206.08}]
[]
[null,null,null,"Specialiserad psykiatrisk slutenvård",null,null,null,null,null,"Slutenvården innefattar ett arbete under längre tid med personer med psykiska problem av olika slag. Patienterna är inlagda på en avdelning för behandling. För våld i nära relationer kan detta gälla både den utsatta och förövaren. Rättspsykiatrisk vård hanteras som en egen post längre ner i listan."]
[null,null,null,"Enhet: 1 vårddygn"]
[null,null,null,"(genomsnitt för psykiatrisk slutenvård)",null,null,null,"Antal vårddygn:"]
[null,null,null,"Kostnad:",{"$f":"8000*1.0846","v":8676.7999999999993}]
[]
[null,null,null,"Specialiserad psykiatrisk slutenvård",null,null,null,null,null,"Slutenvården innefattar ett arbete under längre tid med personer med psykiska problem av olika slag. Patienterna är inlagda på en avdelning för behandling. För våld i nära relationer kan detta gälla både den utsatta och förövaren. "]
[null,null,null,"för barn och ungdomar (BUP)"]
[null,null,null,"Enhet: 1 vårddygn (genomsnitt för psykiatrisk slutenvård inom BUP)"]
[]
[null,null,null,null,null,null,null,"Antal vårddygn:"]
[null,null,null,"Kostnad:",{"$f":"20500*1.0846","v":22234.3}]
[]
[null,null,null,"Specialiserad somatisk \nslutenvård",null,null,null,null,null,"Slutenvården innefattar mer omfattande medicinsk, kirurgisk och geriatrisk vård där patienten spenderar nätter inom vården. För våld i nära relationer är det kirurgisk vård som huvudsakligen är aktuellt."]
[null,null,null,"Enhet: 1 vårddygn (genomsnitt för somatisk slutenvård)"]
[null,null,null,null,null,null,null,"Antal vårddygn:"]
[null,null,null,"Kostnad:",{"$f":"10200*1.0846","v":11062.92}]
[]
[null,null,null,"Specialiserad somatisk dagsjukvård",null,null,null,null,null,"Denna dagsjukvård innefattar dagkirurgi, dagmedicin och övrig dagsjukvård (som exempelvis medicinsk dagrehabilitering). För våld i nära relationer är det dagkirurgi som huvudsakligen är aktuellt."]
[null,null,null,"Enhet: 1 vårdkontakt",null,null,null,"Antal vårdkontakt/er:"]
[null,null,null,"Kostnad:",{"$f":"5900*1.0846","v":6399.14}]
[]
[]
[null,null,null,"Specialiserad somatisk",null,null,null,null,null,"Specialiserad somatisk vård innefattar hälso- och sjukvård av fysiskt relaterade åkommor av mer specialiserat slag än inom primärvård. Är uppdelad i bland annat medicinsk och kirurgisk vård. Besök hos mottagningsverksamheten kopplat till våld i nära relationer handlar om att exempelvis träffa kirurg för konsultation."]
[null,null,null,"mottagningsverksamhet"]
[null,null,null,"Enhet: 1 vårdkontakt",null,null,null,"Antal vårdkontakt/er:"]
[null,null,null,"Kostnad:",{"$f":"3400*1.0846","v":3687.64}]
[]
[]
[]
[]
[null,null,"Tandvård"]
[]
[null,null,null,"Allmäntandvård",null,null,null,null,null,"Allmäntandvården innefattar all tandvård som bedrivs på allmänna tandvårdskliniker (folktandvården och motsvarande). "]
[null,null,null,"Enhet: 1 vårdkontakt",null,null,null,"Antal vårdkontakt/er:"]
[null,null,null,"Kostnad:",{"$f":"2400*1.0846","v":2603.04}]
[]
[null,null,null,"Specialisttandvård",null,null,null,null,null,"Specialisttandvård får den som har särskilda behov. Sker på remiss från någon form av vårdgivare. Innefattar exempelvis käkkirurgi, avancerad röntgen, tandersättning och tandreglering."]
[null,null,null,"Enhet: 1 vårdkontakt",null,null,null,"Antal vårdkontakt/er:"]
[null,null,null,"Kostnad:",{"$f":"6500*1.0846","v":7049.9}]
[]
[]
[]
[null,null,"Rättspsykiatrisk avdelning/klinik"]
[]
[null,null,null,"Rättspsykiatrisk vård",null,null,null,null,null,"I de fall en förövare har begått ett våldsbrott under påverkan av allvarlig psykisk störning kan denna inte dömas till fängelse, utan istället till rättspsykiatrisk vård. "]
[null,null,null,"Enhet: 1 dygn",null,null,null,"Antal dygn:"]
[null,null,null,"Kostnad:",{"$f":"7000*1.0846","v":7592.2}]
[]
[null,null,null,"Läkemedel",null,null,null,null,null,"Läkemedel handlar här om alla former av medicin."]
[null,null,null,"Enhet: 1 recept",null,null,null,"Antal recept:"]
[null,null,null,"Kostnad:",{"$f":"200*1.0846","v":216.92000000000002}]
[]
[null,null,null,"Tolk",null,null,null,null,null,"En tolk används när personen i fråga inte har tillräckliga språkkunskaper och det därför behövs översättning. Insatsen/aktiviteten innebär vanligen en utbetalning. "]
[null,null,null,"Enhet: 1 timme",null,null,null,"Antal timmar:"]
[null,null,null,"Kostnad:",{"$f":"550*1.0846","v":596.53}]
[]
[null,null,null," "]
[null,null,"Egen insats"]
[]
[null,null,null,"Ange namn, enhet, kostnad och antal enheter"]
[null,null,null,"(Ange namn)"]
[]
[null,null,null,"Enhet:",null,null,null,"Antal enheter:"]
[null,null,null,"Kostnad:"]
[]
[]
[]
[]
[]
[null,null,null,"Sammanställning av kostnader"]
[]
[null,null,null,"Primarvård"]
[null,null,null,{"$f":"D10","v":"Allmänläkarvård"},null,null,null,null,null,{"$f":"H12*E12","v":0}]
[null,null,null,{"$f":"D14","v":"Mödrahälsovård "},null,null,null,null,null,{"$f":"H17*E17","v":0}]
[null,null,null,{"$f":"D19","v":"Sjuksköterskevård"},null,null,null,null,null,{"$f":"H21*E21","v":0}]
[null,null,null,"Primarvård",null,null,null,null,null,{"$f":"SUM(J121:J123)","v":0}]
[]
[null,null,null,"Specialiserad vård"]
[null,null,null,{"$f":"D25","v":"Akutmottagning psyk"},null,null,null,null,null,{"$f":"H27*E27","v":0}]
[null,null,null,{"$f":"D30","v":"Akutmottagning somatisk"},null,null,null,null,null,{"$f":"H32*E32","v":0}]
[null,null,null,{"$f":"D34","v":"Ambulans"},null,null,null,null,null,{"$f":"H36*E36","v":0}]
[null,null,null,{"$f":"D38","v":"Specialiserad psykiatrisk"},null,null,null,null,null,{"$f":"H41*E41","v":0}]
[null,null,null,{"$f":"D44","v":"Specialiserad psykiatrisk"},null,null,null,null,null,{"$f":"H47*E47","v":0}]
[null,null,null,{"$f":"D49","v":"Specialiserad psykiatrisk slutenvård"},null,null,null,null,null,{"$f":"H52*E52","v":0}]
[null,null,null,{"$f":"D54","v":"Specialiserad psykiatrisk slutenvård"},null,null,null,null,null,{"$f":"H59*E59","v":0}]
[null,null,null,{"$f":"D61","v":"Specialiserad somatisk \nslutenvård"},null,null,null,null,null,{"$f":"H64*E64","v":0}]
[null,null,null,{"$f":"D66","v":"Specialiserad somatisk dagsjukvård"},null,null,null,null,null,{"$f":"H68*E68","v":0}]
[null,null,null,{"$f":"D71","v":"Specialiserad somatisk"},null,null,null,null,null,{"$f":"H74*E74","v":0}]
[null,null,null,"Specialiserad vård",null,null,null,null,null,{"$f":"SUM(J127:J136)","v":0}]
[]
[null,null,null,"Tandvård"]
[null,null,null,{"$f":"D81","v":"Allmäntandvård"},null,null,null,null,null,{"$f":"H83*E83","v":0}]
[null,null,null,{"$f":"D85","v":"Specialisttandvård"},null,null,null,null,null,{"$f":"H87*E87","v":0}]
[null,null,null,"Tandvård",null,null,null,null,null,{"$f":"SUM(J140:J141)","v":0}]
[]
[null,null,null,"Rättspsykiatrisk avdelning/klinik"]
[null,null,null,{"$f":"D93","v":"Rättspsykiatrisk vård"},null,null,null,null,null,{"$f":"H95*E95","v":0}]
[null,null,null,"Rättspsykiatrisk avdelning/klinik",null,null,null,null,null,{"$f":"SUM(J145)","v":0}]
[]
[null,null,null,"Oberoende av verksamhet"]
[null,null,null,{"$f":"D97","v":"Läkemedel"},null,null,null,null,null,{"$f":"H99*E99","v":0}]
[null,null,null,{"$f":"D101","v":"Tolk"},null,null,null,null,null,{"$f":"H103*E103","v":0}]
[null,null,null,"Oberoende av verksamhet",null,null,null,null,null,{"$f":"SUM(J149:J150)","v":0}]
[]
[null,null,null,{"$f":"C106& \" -\"&D109","v":"Egen insats -(Ange namn)"},null,null,null,null,null,{"$f":"H112*E112","v":0}]
[]
[null,null,null,"Summa",null,null,null,null,null,{"$f":"J151+J146+J142+J137+J124+J153","v":0}]

{"sheet":"Samv. mellan verksamheter","index":6,"n_rows":29,"n_cols":10,"rows_kept":29,"cut":false,"hidden":false,"merged":[[7,9,10,15]]}
[]
[null,null,"Samverkan mellan olika verksamheter"]
[null,null,null,"Tryck Tab eller Enter för att hoppa mellan de ifyllbara cellerna (vita)."]
[null,null,null,"En sammanställning av allt som fyllts i presenteras längst ner i bladet."]
[]
[]
[]
[null,null,null,"Samråd",null,null,null,null,null,"Samråd kan ske mellan olika verksamheter kring en enskild individ. Tex mellan socialtjänst, polis och sjukvård. Även barnahus, barnläkare, kurator, behandlingshem, åklagare och andra aktörer kan vara involverade."]
[null,null,null,"Enhet: 1 samråd"]
[null,null,null,"(30 min, räknat med 3 aktörer)",null,null,null,"Antal samråd:"]
[null,null,null,"Kostnad:",{"$f":"1200*1.0846","v":1301.52}]
[]
[null,null,null,"Egen insats"]
[null,null,null,"Ange namn, enhet, kostnad och antal enheter"]
[null,null,null,"(Ange namn)"]
[]
[null,null,null,"Enhet:",null,null,null,"Antal enheter:"]
[null,null,null,"Kostnad:"]
[]
[]
[]
[]
[]
[null,null,null,"Sammanställning av kostnader"]
[]
[null,null,null,"Samverkan mellan olika verksamheter"]
[null,null,null,{"$f":"D8","v":"Samråd"},null,null,null,null,null,{"$f":"H11*E11","v":0}]
[null,null,null,{"$f":"D13&\" -\"&D15","v":"Egen insats -(Ange namn)"},null,null,null,null,null,{"$f":"H18*E18","v":0}]
[null,null,null,"Summa",null,null,null,null,null,{"$f":"SUM(J27:J28)","v":0}]

{"sheet":"Ideella organisationer","index":7,"n_rows":57,"n_cols":10,"rows_kept":57,"cut":false,"hidden":false,"merged":[[1,2,1,7],[15,9,21,13],[10,3,10,5],[9,9,13,13],[3,3,4,9],[16,3,18,5],[43,3,43,9],[23,2,23,5],[25,9,29,13],[26,3,28,5],[34,3,34,4]]}
[]
[null,null,"Ideella organisationer"]
[null,null,null,"Tryck Tab eller Enter för att hoppa mellan de ifyllbara cellerna (vita)."]
[null,null,null,"En sammanställning av allt som fyllts i presenteras längst ner i bladet."]
[]
[]
[]
[null,null,"Kvinnojour"]
[]
[null,null,null,"Skyddat boende",null,null,null,null,null,"Skyddat boende som Kvinnojouren själv erbjuder. Den utsatta får tillgång till boendet via socialtjänsten. I de flesta fall ingår skydd, stöd (samtalsstöd) och praktisk hjälp. De flesta jourer erbjuder också särskild barnverksamhet till barn som bor hos dem.  "]
[null,null,null,"Enhet: 1 dygn, 1 person",null,null,null,"Antal dygn:"]
[null,null,null,"Kostnad:",{"$f":"1600*1.0846","v":1735.3600000000001}]
[]
[]
[]
[null,null,null,"Stödjande aktivitet",null,null,null,null,null,"Med stödjande aktiviteter avses här aktiviteter riktade till individer som inte finns i kvinnojourens skyddade boende. Exempelvis agera medföljare till myndighet, hjälp till med nytt boende, enskilda-/gruppsamtal, umgängesstöd och barnaktiviteter. Dessa aktiviteter är även tillgängliga för de som finns i skyddat boende, men kostnaden för dessa ingår i föregående post."]
[null,null,null,"Enhet: 1 timme (olika professioner, tex socionom, beteendevetare, kurator)"]
[]
[null,null,null,null,null,null,null,"Antal timmar:"]
[null,null,null,"Kostnad:",{"$f":"800*1.0846","v":867.68000000000006}]
[]
[]
[]
[null,null,"Brottsofferjour"]
[]
[null,null,null,"Stöd från brottsofferjour",null,null,null,null,null,"Brottsofferjouren arbetar för alla brottsoffers rättighet att få det stöd som behövs för att få kraften tillbaka. Det kan handla om stöd vid kontakter med hjälpinstanser som kan ge till exempel psykologisk hjälp, skyddat boende eller ekonomiskt understöd."]
[null,null,null,"Enhet: 9 timmar (genomsnittlig tidsåtgång för alla typer av brottsoffer)"]
[]
[null,null,null,null,null,null,null,"Antalet stöd:"]
[null,null,null,"Kostnad:",{"$f":"4300*1.0846","v":4663.78}]
[]
[]
[null,null,null,"Egen insats"]
[null,null,null,"Ange namn, enhet, kostnad och antal enheter"]
[null,null,null,"(Ange namn)"]
[]
[null,null,null,"Enhet:",null,null,null,"Antal enheter:"]
[null,null,null,"Kostnad:"]
[]
[]
[]
[]
[]
[null,null,null,"Sammanställning av kostnader"]
[]
[null,null,null,"Kvinnojour"]
[null,null,null,{"$f":"D10","v":"Skyddat boende"},null,null,null,null,null,{"$f":"H12*E12","v":0}]
[null,null,null,{"$f":"D16","v":"Stödjande aktivitet"},null,null,null,null,null,{"$f":"H20*E20","v":0}]
[null,null,null,"Kvinnojour",null,null,null,null,null,{"$f":"SUM(J47:J48)","v":0}]
[]
[null,null,null,"Brottsofferjour"]
[null,null,null,{"$f":"D26","v":"Stöd från brottsofferjour"},null,null,null,null,null,{"$f":"H30*E30","v":0}]
[null,null,null,"Brottsofferjour",null,null,null,null,null,{"$f":"SUM(J52)","v":0}]
[]
[null,null,null,{"$f":"D33&\" -\"&D35","v":"Egen insats -(Ange namn)"},null,null,null,null,null,{"$f":"E38*H38","v":0}]
[]
[null,null,null,"Summa",null,null,null,null,null,{"$f":"J49+J53+J55","v":0}]

{"sheet":"Stat","index":8,"n_rows":123,"n_cols":10,"rows_kept":123,"cut":false,"hidden":false,"merged":[[8,9,11,14],[13,9,15,14],[17,9,20,14],[14,3,14,5],[27,3,27,6],[28,3,29,5],[18,3,20,5],[23,3,23,6],[24,3,24,5],[41,3,41,6],[42,3,42,5],[37,3,38,5],[32,3,32,6],[33,3,33,5],[36,3,36,6],[1,2,1,5],[83,2,83,6],[3,3,5,8],[93,3,93,9],[85,3,85,4],[46,2,46,5],[55,2,55,6],[68,2,68,6],[77,3,77,5],[71,3,71,5],[58,3,60,5],[63,3,63,6],[64,3,64,5],[48,3,48,6],[49,3,49,5],[57,3,57,6],[76,9,80,14],[23,9,25,14],[27,9,30,14],[32,9,34,14],[36,9,39,14],[41,9,43,14],[48,9,52,14],[57,9,61,14],[63,9,65,14],[70,9,74,14]]}
[]
[null,null,"Stat"]
[null,null,null,"Tryck Tab eller Enter för att hoppa mellan de ifyllbara cellerna (vita)."]
[null,null,null,"En sammanställning av allt som fyllts i presenteras längst ner i bladet."]
[]
[]
[null,null,"Försäkringskassan"]
[]
[null,null,null,"Aktivitetsersättning",null,null,null,null,null,"Aktivitetsersättning beviljas de som är i åldrarna 19–29 år och som av medicinska skäl har fått sin arbetsförmåga nedsatt med minst en fjärdedel under minst ett år. Ersättningen är alltid tidsbegränsad. Insatsen/aktiviteten innebär en utbetalning."]
[null,null,null,"Enhet: 1 månad sjukersättning"]
[null,null,null,"(medelbelopp för all sjukersättning)",null,null,null,"Antal månad/er:"]
[null,null,null,"Kostnad:",{"$f":"7900*1.0846","v":8568.34}]
[]
[null,null,null,"Aktivitetsersättning handläggning",null,null,null,null,null,"Vid ansökan om aktivitetsersättning behöver ärendet handläggas av Försäkringskassan. "]
[null,null,null,"Enhet: 1 beslut om ersättning",null,null,null,"Antal beslut:"]
[null,null,null,"Kostnad:",{"$f":"11600*1.0846","v":12581.36}]
[]
[null,null,null,"Rehabiliteringspenning",null,null,null,null,null,"Rehabiliteringspenning kan betalas ut till den som har tillfälligt nedsatt arbetsförmåga på grund av sjukdom eller skada och deltar i arbetslivsinriktad rehabilitering. Insatsen/aktiviteten innebär en utbetalning."]
[null,null,null,"Enhet: 1 dag rehabiliteringspenning (medelbelopp för all rehabiliteringspenning)"]
[]
[null,null,null,null,null,null,null,"Antal dag/ar:"]
[null,null,null,"Kostnad:",{"$f":"500*1.0846","v":542.29999999999995}]
[]
[null,null,null,"Rehabiliteringspenning handläggning ",null,null,null,null,null,"Vid ansökan om rehabiliteringspenning behöver ärendet handläggas av Försäkringskassan. "]
[null,null,null,"Enhet: 1 genomförd utbetalning",null,null,null,"Antal utbetalningar:"]
[null,null,null,"Kostnad:",{"$f":"500*1.0846","v":542.29999999999995}]
[]
[null,null,null,"Sjukersättning",null,null,null,null,null,"Sjukersättning beviljas de som är i åldrarna 30–64 år och som har en stadigvarande nedsatt arbetsförmåga, det vill säga för all överskådlig framtid. Insatsen/aktiviteten innebär en utbetalning."]
[null,null,null,"Enhet: 1 månad sjukersättning (medelbelopp för all sjukpenning)"]
[null,null,null,null,null,null,null,"Antal månad/er:"]
[null,null,null,"Kostnad:",{"$f":"9300*1.0846","v":10086.780000000001}]
[]
[null,null,null,"Sjukersättning handläggning",null,null,null,null,null,"Vid ansökan om sjukersättning behöver ärendet handläggas av Försäkringskassan. "]
[null,null,null,"Enhet: 1 beslut om ersättning",null,null,null,"Antal beslut:"]
[null,null,null,"Kostnad:",{"$f":"9400*1.0846","v":10195.24}]
[]
[null,null,null,"Sjukpenning",null,null,null,null,null,"Försäkringskassan kan betala ut sjukpenning till den som har tillfälligt nedsatt arbetsförmåga på̊ grund av sjukdom eller skada. Detta sker då från dag 15 och framåt. Insatsen/aktiviteten innebär en utbetalning."]
[null,null,null,"Enhet: 1 dag sjukpenning (medelbelopp för all sjukpenning)"]
[null,null,null,null,null,null,null,"Antal dag/ar:"]
[null,null,null,"Kostnad:",{"$f":"600*1.0846","v":650.76}]
[]
[null,null,null,"Sjukpenning handläggning",null,null,null,null,null,"Vid ansökan om sjukpenning behöver ärendet som helhet handläggas av Försäkringskassan. "]
[null,null,null,"Enhet: 1 avslutat sjukfall",null,null,null,"Antal avslutade fall:"]
[null,null,null,"Kostnad:",{"$f":"6800*1.0846","v":7375.28}]
[]
[]
[null,null,"Skatteverket"]
[]
[null,null,null,"Sekretessmarkering och kvarskrivning",null,null,null,null,null,"En sekretessmarkering gör det svårare för andra att ta del av personens personuppgifter i folkbokföringsregistret. Kallas i dagligt tal för skyddad identitet. Kvarskrivning fungerar som ett adresskydd när en person har flyttat till annan, hemlig adress. Den nya adressen framgår då inte."]
[null,null,null,"Enhet: 1 ärende (medelhög resursåtgång)",null,null,null,"Antal ärenden:"]
[null,null,null,"Kostnad:",{"$f":"3800*1.0846","v":4121.4800000000005}]
[]
[]
[]
[]
[null,null,"Kronofogdemyndigheten"]
[]
[null,null,null,"Avskrivna skulder vid skuldsanering",null,null,null,null,null,"När skuldsanering genomförs skrivs en stor del av de befintliga skulderna av, vilket gör att ekonomiska fodringar aldrig betalas tillbaka."]
[null,null,null,"Enhet: 1 skuldsanering (genomsnittligt avskrivet skuldbelopp för all skuldsanering)"]
[]
[null,null,null,null,null,null,null,"Antal skuldsanering/ar:"]
[null,null,null,"Kostnad:",{"$f":"570000*1.0846","v":618222}]
[]
[null,null,null,"Handläggning skuldsanering",null,null,null,null,null,"I fall där skuldsanering begärs sker en handläggning av ärendet för att fatta beslut om saneringen ska godkännas eller ej. "]
[null,null,null,"Enhet: 1 avslutat ärende",null,null,null,"Antal avslutade ärenden:"]
[null,null,null,"Kostnad:",{"$f":"14200*1.0846","v":15401.32}]
[]
[]
[null,null,"Brottsoffermyndigheten"]
[]
[null,null,null,"Brottsskadeersättning för våldtäkt",null,null,null,null,null,"Om en dömd gärningsperson inte kan betala skadeståndet och den utsatta inte har någon försäkring som täcker skadan, kan den utsatta i vissa fall få ersättning från staten. Sådan ersättning kallas brottsskadeersättning. Insatsen/aktiviteten innebär en utbetalning."]
[null,null,null,"Enhet: 1 utbetalning av ersättning",null,null,null,"Antal erästtningar:"]
[null,null,null,"Kostnad:"]
[]
[]
[]
[null,null,null,"Brottsskadeersättning våld i nära relation",null,null,null,null,null,"Om en dömd gärningsperson inte kan betala skadeståndet och den utsatta inte har någon försäkring som täcker skadan, kan den utsatta i vissa fall få ersättning från staten. Sådan ersättning kallas brottsskadeersättning. Insatsen/aktiviteten innebär en utbetalning."]
[null,null,null,"Enhet: 1 utbetalning av ersättning",null,null,null,"Antal erästtningar:"]
[null,null,null,"Kostnad:"]
[]
[]
[]
[]
[null,null,"Egen insats"]
[null,null,null,"Ange namn, enhet, kostnad och antal enheter"]
[null,null,null,"(Ange namn)"]
[]
[null,null,null,"Enhet:",null,null,null,"Antal enheter:"]
[null,null,null,"Kostnad:"]
[]
[]
[]
[]
[null,null,null,"Sammanställning av kostnader"]
[]
[null,null,null,"Försäkringskassan"]
[null,null,null,{"$f":"D9","v":"Aktivitetsersättning"},null,null,null,null,null,{"$f":"H12*E12","v":0}]
[null,null,null,{"$f":"D14","v":"Aktivitetsersättning handläggning"},null,null,null,null,null,{"$f":"H16*E16","v":0}]
[null,null,null,{"$f":"D18","v":"Rehabiliteringspenning"},null,null,null,null,null,{"$f":"H22*E22","v":0}]
[null,null,null,{"$f":"D24","v":"Rehabiliteringspenning handläggning "},null,null,null,null,null,{"$f":"H26*E26","v":0}]
[null,null,null,{"$f":"D28","v":"Sjukersättning"},null,null,null,null,null,{"$f":"H31*E31","v":0}]
[null,null,null,{"$f":"D33","v":"Sjukersättning handläggning"},null,null,null,null,null,{"$f":"H35*E35","v":0}]
[null,null,null,{"$f":"D37","v":"Sjukpenning"},null,null,null,null,null,{"$f":"H40*E40","v":0}]
[null,null,null,{"$f":"D42","v":"Sjukpenning handläggning"},null,null,null,null,null,{"$f":"H44*E44","v":0}]
[null,null,null,"Försäkringskassan",null,null,null,null,null,{"$f":"SUM(J97:J104)","v":0}]
[]
[null,null,null,"Skatteverket"]
[null,null,null,{"$f":"D49","v":"Sekretessmarkering och kvarskrivning"},null,null,null,null,null,{"$f":"H51*E51","v":0}]
[null,null,null,"Skatteverket",null,null,null,null,null,{"$f":"SUM(J108)","v":0}]
[]
[null,null,null,"Kronofogdemyndigheten"]
[null,null,null,{"$f":"D58","v":"Avskrivna skulder vid skuldsanering"},null,null,null,null,null,{"$f":"H62*E62","v":0}]
[null,null,null,{"$f":"D64","v":"Handläggning skuldsanering"},null,null,null,null,null,{"$f":"H66*E66","v":0}]
[null,null,null,"Kronofogdemyndigheten",null,null,null,null,null,{"$f":"SUM(J112:J113)","v":0}]
[]
[null,null,null,"Brottsoffermyndigheten"]
[null,null,null,{"$f":"D71","v":"Brottsskadeersättning för våldtäkt"},null,null,null,null,null,{"$f":"H73*E73","v":0}]
[null,null,null,{"$f":"D77","v":"Brottsskadeersättning våld i nära relation"},null,null,null,null,null,{"$f":"H79*E79","v":0}]
[null,null,null,"Brottsoffermyndigheten",null,null,null,null,null,{"$f":"SUM(J117:J118)","v":0}]
[]
[null,null,null,{"$f":"C84&\" -\"&D86","v":"Egen insats -(Ange namn)"},null,null,null,null,null,{"$f":"H89*E89","v":0}]
[]
[null,null,null,"Summa",null,null,null,null,null,{"$f":"J119+J114+J109+J105+J121","v":0}]

{"sheet":"Rättsväsende","index":9,"n_rows":169,"n_cols":10,"rows_kept":169,"cut":false,"hidden":false,"merged":[[25,9,28,13],[26,3,28,5],[39,9,42,13],[34,9,38,13],[10,9,14,13],[12,3,13,5],[19,9,22,13],[20,3,22,5],[10,3,11,5],[72,3,73,5],[74,3,76,5],[44,9,48,13],[58,3,58,5],[57,9,59,13],[49,9,52,13],[109,3,110,5],[108,9,111,13],[1,2,1,4],[17,2,17,6],[32,2,32,6],[55,2,55,5],[70,2,70,5],[50,3,51,5],[45,3,46,5],[40,3,41,5],[35,3,36,5],[61,9,63,13],[62,3,62,5],[65,9,67,13],[66,3,66,5],[72,9,76,13],[154,3,154,8],[155,3,155,8],[121,3,121,4],[129,3,129,9],[113,9,116,13],[114,3,115,5],[87,2,87,6],[90,3,91,5],[89,9,93,13],[79,9,83,13],[79,3,80,5],[81,3,83,5],[95,9,99,13],[96,3,98,5],[103,3,104,5],[101,9,107,13],[101,3,102,5]]}
[]
[null,null,"Rättsväsende"]
[null,null,null,"Tryck Tab eller Enter för att hoppa mellan de ifyllbara cellerna (vita)."]
[null,null,null,"En sammanställning av allt som fyllts i presenteras längst ner i bladet."]
[]
[]
[]
[]
[null,null,"Polisen"]
[]
[null,null,null,"Utredningsverksamhet (inklusive lagföring)",null,null,null,null,null,"Finns misstanke om brott startas en polisutredning för att samla information om skeendet. "]
[]
[null,null,null,"Enhet: 1 utredning och lagföring (genomsnitt alla typer av brott)"]
[null,null,null,null,null,null,null,"Antal utredningar:"]
[null,null,null,"Kostnad:",{"$f":"19300*1.0846","v":20932.78}]
[]
[]
[null,null,"Åklagarmyndigheten"]
[]
[null,null,null,"Sexualbrott",null,null,null,null,null,"Vid misstanke om sexualbrott engageras åklagarmyndigheten och en åklagare tillsätts för målet. Åklagaren är den som väcker åtal."]
[null,null,null,"Enhet: 1 åklagarärende vid brottsmisstanke (genomsnitt för alla typer av brott)"]
[]
[null,null,null,null,null,null,null,"Antal åklagarärenden:"]
[null,null,null,"Kostnad:",{"$f":"9200*1.0846","v":9978.32}]
[]
[null,null,null,"Våldsbrott",null,null,null,null,null,"Vid misstanke om våldsbrott engageras åklagarmyndigheten och en åklagare tillsätts för målet. Åklagaren är den som väcker åtal."]
[null,null,null,"Enhet: 1 åklagarärende vid brottsmisstanke (genomsnitt för alla typer av brott)"]
[]
[null,null,null,null,null,null,null,"Antal åklagarärenden:"]
[null,null,null,"Kostnad:",{"$f":"5000*1.0846","v":5423}]
[]
[]
[null,null,"Domstol"]
[]
[null,null,null,"Brottsmål – tingsrätt",null,null,null,null,null,"När ett brottsmål kommer upp i tingsrätten är det domstolen som leder processen framåt, från start till slutligt beslut i målet. Tingsrätten är första rättsliga insats i brottsmål inom domstolsväsendet. "]
[null,null,null,"Enhet: 1 genomförande av brottsmål (genomsnitt för alla typer av brottsmål)"]
[null,null,null,null,null,null,null,"Antal brottsmål:"]
[null,null,null,"Kostnad:",{"$f":"16300*1.0846","v":17678.98}]
[]
[null,null,null,"Brottsmål – hovrätt",null,null,null,null,null,"Hovrätten tar upp ärenden i fall då tingsrättens dom har överklagats. Domstolen leder processen framåt, från start till slutligt beslut i målet. "]
[null,null,null,"Enhet: 1 genomförande av brottsmål (genomsnitt för alla typer av brottsmål)"]
[null,null,null,null,null,null,null,"Antal brottsmål:"]
[null,null,null,"Kostnad:",{"$f":"51800*1.0846","v":56182.28}]
[]
[null,null,null,"Tvistemål – tingsrätt",null,null,null,null,null,"När ett tvistemål kommer upp i tingsrätten är det domstolen som leder processen framåt, från start till slutligt beslut i målet. Tingsrätten är första rättsliga insats i tvistemål inom domstolsväsendet. "]
[null,null,null,"Enhet: 1 genomförande av tvistemål (genomsnitt för alla typer av tvistemål)"]
[null,null,null,null,null,null,null,"Antal tvistemål:"]
[null,null,null,"Kostnad:",{"$f":"18400*1.0846","v":19956.64}]
[]
[null,null,null,"Tvistemål – hovrätt",null,null,null,null,null,"Hovrätten tar upp ärenden i fall då tingsrättens dom har överklagats. Domstolen leder processen framåt, från start till slutligt beslut i målet. "]
[null,null,null,"Enhet: 1 genomförande av tvistemål (genomsnitt för alla typer av tvistemål)"]
[null,null,null,null,null,null,null,"Antal tvistemål:"]
[null,null,null,"Kostnad:",{"$f":"43400*1.0846","v":47071.64}]
[]
[]
[null,null,"Kriminalvård"]
[]
[null,null,null,"Anstalt",null,null,null,null,null,"När en förövare dömts till fängelse placeras denna på angiven anstalt för att avtjäna sitt straff."]
[null,null,null,"Enhet: 1 dygn",null,null,null,"Antal dygn:"]
[null,null,null,"Kostnad:",{"$f":"3400*1.0846","v":3687.64}]
[]
[null,null,null,"Frivård",null,null,null,null,null,"Frivården övervakar klienter som är villkorligt frigivna, har skyddstillsyn, samhällstjänst eller övervakas med hjälp av fotboja."]
[null,null,null,"Enhet: 1 dygn",null,null,null,"Antal dygn:"]
[null,null,null,"Kostnad:",{"$f":"300*1.0846","v":325.38}]
[]
[null,null,null,"Häkte",null,null,null,null,null,"När en förövare anhållits och begärts häktad av åklagaren placeras förövaren i häktet."]
[null,null,null,"Enhet: 1 dygn",null,null,null,"Antal dygn:"]
[null,null,null,"Kostnad:",{"$f":"3600*1.0846","v":3904.56}]
[]
[]
[null,null,"Advokatbyrå"]
[]
[null,null,null,"Domstolsprocess målsägarbiträde (inklusive stöd under förundersökning)",null,null,null,null,null,"En brottsmisstänkt person har rätt till en försvarsadvokat, vilket vanligen är en advokat eller jurist anställd vid advokatbyrå. Det handlar om att stödja sin klient under förundersökningen och den eventuella domstolsprocessen."]
[]
[null,null,null,"Enhet: 1 genomförande av domstolsmål \n(genomsnitt alla typer av mål)\n"]
[]
[null,null,null,null,null,null,null,"Antal domstolsprocesser:"]
[null,null,null,"Kostnad:",{"$f":"13200*1.0846","v":14316.72}]
[]
[null,null,null,"Domstolsprocess försvarsadvokat (inklusive stöd under förundersökning)",null,null,null,null,null,"En våldsutsatt har rätt till ett målsägarbiträde vilket vanligen är en advokat eller jurist anställd vid advokatbyrå. Det handlar om att stödja sin klient under förundersökningen och den eventuella domstolsprocessen."]
[]
[null,null,null,"Enhet: 1 genomförande av domstolsmål \n(genomsnitt alla typer av mål)\n"]
[]
[null,null,null,null,null,null,null,"Antal domstolsprocesser:"]
[null,null,null,"Kostnad:",{"$f":"18900*1.0846","v":20498.939999999999}]
[]
[]
[null,null,"Rättsmedicinalverket"]
[]
[null,null,null,"§ 7-undersökning",null,null,null,null,null,"Oftast föregås en rättspsykiatrisk undersökning av en mindre så kallad § 7- undersökning. Det är en timslång utvärdering som kan resultera i att utföraren (Rättsmedicinalverket) rekommenderar domstolen att gå̊ vidare och begära en rättspsykiatrisk undersökning."]
[null,null,null,"Enhet: 1 undersökning (genomsnitt för alla undersökningar)"]
[null,null,null,null,null,null,null,"Antal undersökningar:"]
[null,null,null,"Kostnad:",{"$f":"7100*1.0846","v":7700.66}]
[]
[]
[null,null,null,"Kroppsundersökning",null,null,null,null,null,"Vid brottsmisstanke kan en kroppsundersökning ske av brottsoffer och gärningsman. I detta ingår även att göra ett sammantaget utlåtande utifrån undersökningen."]
[null,null,null,"Enhet: 1 kroppsundersökning (genomsnitt för alla undersökningar)"]
[]
[null,null,null,null,null,null,null,"Antal kroppsundersökningar:"]
[null,null,null,"Kostnad:",{"$f":"4800*1.0846","v":5206.08}]
[]
[null,null,null,"Rättspsykiatrisk undersökning av häktad",null,null,null,null,null,"En rättspsykiatrisk undersökning av en häktad person tar vanligen fyra veckor. Under perioden undersöks den misstänkte av ett team bestående av rättspsykiater, psykolog, forensisk socialutredare och omvårdnadspersonal för att tillsammans bilda sig en uppfattning om personens psykiska status vid brottstillfället."]
[]
[null,null,null,"Enhet: 1 undersökning (genomsnitt för alla undersökningar)"]
[null,null,null,null,null,null,null,"Antal undersökningar:"]
[null,null,null,"Kostnad:",{"$f":"479000*1.0846","v":519523.4}]
[]
[]
[null,null,null,"Rättspsykiatrisk undersökning av person på fri fot",null,null,null,null,null,"En rättspsykiatrisk undersökning för person på fri fot får max ta 6 veckor. Den genomförs ungefär på samma sätt som den rättspsykiatriska undersökningen av en häktad person."]
[null,null,null,"Enhet: 1 undersökning (genomsnitt för alla undersökningar)"]
[null,null,null,null,null,null,null,"Antal undersökningar:"]
[null,null,null,"Kostnad:",{"$f":"71900*1.0846","v":77982.740000000005}]
[]
[null,null,null,"Yttrande",null,null,null,null,null,"Rättsmedicin lämnar ett yttrande i ett fall där de inte gjort några egna kroppsundersökningar, utan enbart utgått ifrån journal- och polisuppgifter."]
[null,null,null,"Enhet: 1 yttrande (genomsnitt för alla typer av yttranden)"]
[null,null,null,null,null,null,null,"Antal yttranden:"]
[null,null,null,"Kostnad:",{"$f":"3000*1.0846","v":3253.8}]
[]
[]
[null,null,"Egen insats"]
[null,null,null,"Ange namn, enhet, kostnad och antal enheter"]
[null,null,null,"(Ange namn)"]
[]
[null,null,null,"Enhet:",null,null,null,"Antal enheter:"]
[null,null,null,"Kostnad:"]
[]
[]
[]
[]
[null,null,null,"Sammanställning av kostnader"]
[]
[null,null,null,"Polisen"]
[null,null,null,{"$f":"D11","v":"Utredningsverksamhet (inklusive lagföring)"},null,null,null,null,null,{"$f":"H15*E15","v":0}]
[null,null,null,"Polisen",null,null,null,null,null,{"$f":"SUM(J133)","v":0}]
[]
[null,null,null,"Åklagarmyndigheten"]
[null,null,null,{"$f":"D20","v":"Sexualbrott"},null,null,null,null,null,{"$f":"H24*E24","v":0}]
[null,null,null,{"$f":"D26","v":"Våldsbrott"},null,null,null,null,null,{"$f":"H30*E30","v":0}]
[null,null,null,"Åklagarmyndigheten",null,null,null,null,null,{"$f":"SUM(J137:J138)","v":0}]
[]
[null,null,null,"Domstol"]
[null,null,null,{"$f":"D35","v":"Brottsmål – tingsrätt"},null,null,null,null,null,{"$f":"H38*E38","v":0}]
[null,null,null,{"$f":"D40","v":"Brottsmål – hovrätt"},null,null,null,null,null,{"$f":"H43*E43","v":0}]
[null,null,null,{"$f":"D45","v":"Tvistemål – tingsrätt"},null,null,null,null,null,{"$f":"H48*E48","v":0}]
[null,null,null,{"$f":"D50","v":"Tvistemål – hovrätt"},null,null,null,null,null,{"$f":"H53*E53","v":0}]
[null,null,null,"Domstol",null,null,null,null,null,{"$f":"SUM(J142:J145)","v":0}]
[]
[null,null,null,"Kriminalvård"]
[null,null,null,{"$f":"D58","v":"Anstalt"},null,null,null,null,null,{"$f":"H60*E60","v":0}]
[null,null,null,{"$f":"D62","v":"Frivård"},null,null,null,null,null,{"$f":"H64*E64","v":0}]
[null,null,null,{"$f":"D66","v":"Häkte"},null,null,null,null,null,{"$f":"H68*E68","v":0}]
[null,null,null,"Kriminalvård",null,null,null,null,null,{"$f":"SUM(J149:J151)","v":0}]
[]
[null,null,null,"Advokatbyrå"]
[null,null,null,{"$f":"D73","v":"Domstolsprocess målsägarbiträde (inklusive stöd under förundersökning)"},null,null,null,null,null,{"$f":"H78*E78","v":0}]
[null,null,null,{"$f":"D80","v":"Domstolsprocess försvarsadvokat (inklusive stöd under förundersökning)"},null,null,null,null,null,{"$f":"H85*E85","v":0}]
[null,null,null,"Advokatbyrå",null,null,null,null,null,{"$f":"SUM(J155:J156)","v":0}]
[]
[null,null,null,"Rättsmedicinalverket"]
[null,null,null,{"$f":"D90","v":"§ 7-undersökning"},null,null,null,null,null,{"$f":"H93*E93","v":0}]
[null,null,null,{"$f":"D96","v":"Kroppsundersökning"},null,null,null,null,null,{"$f":"H100*E100","v":0}]
[null,null,null,{"$f":"D102","v":"Rättspsykiatrisk undersökning av häktad"},null,null,null,null,null,{"$f":"H106*E106","v":0}]
[null,null,null,{"$f":"D109","v":"Rättspsykiatrisk undersökning av person på fri fot"},null,null,null,null,null,{"$f":"H112*E112","v":0}]
[null,null,null,{"$f":"D114","v":"Yttrande"},null,null,null,null,null,{"$f":"H117*E117","v":0}]
[null,null,null,"Rättsmedicinalverket",null,null,null,null,null,{"$f":"SUM(J160:J164)","v":0}]
[]
[null,null,null,{"$f":"C120&\" - \"&D122","v":"Egen insats - (Ange namn)"},null,null,null,null,null,{"$f":"H125*E125","v":0}]
[]
[null,null,null,"Summa",null,null,null,null,null,{"$f":"J165+J157+J152+J146+J139+J134+J167","v":0}]

{"sheet":"Privat, offentlig & ideel sek","index":10,"n_rows":44,"n_cols":13,"rows_kept":44,"cut":false,"hidden":false,"merged":[[1,2,2,7],[36,3,36,9],[17,3,18,5],[28,3,28,4],[12,3,13,6],[22,3,23,5],[21,9,24,15],[11,9,14,15],[16,9,19,15]]}
[]
[null,null,"Privat, Offentlig och Ideell sektor"]
[]
[null,null,null,"Tryck Tab eller Enter för att hoppa mellan de ifyllbara cellerna (vita)."]
[null,null,null,"En sammanställning av allt som fyllts i presenteras längst ner i bladet."]
[]
[]
[]
[]
[null,null,"Arbetsgivare"]
[]
[null,null,null,"Sjukskrivning (dag 1-14)",null,null,null,null,null,"När en arbetstagare sjukanmäler sig betalar arbetsgivaren lön (sjuklön) till arbetstagaren från dag 2 till och med dag 14. Ofta krävs ett läkarintyg efter ungefär halva denna period för fortsatt utbetalning av sjuklön. Från dag 15 är det Försäkringskassan som betalar ut eventuell ersättning vid sjukdom. "]
[null,null,null,"Enhet: 1 sjuklönedag (inkl. sociala avgifter, utifrån medianlön)"]
[null,null,null,null,null,null,null,"Antal sjuklönedag/ar:"]
[null,null,null,"Kostnad:",{"$f":"1800*1.0846","v":1952.28}]
[]
[null,null,null,"Företagshälsovård",null,null,null,null,null,"Tillhandahåller arbetsgivaren företagshälsovård till sina anställda kan sådan komma att användas för att stödja utifrån våld i nära relation. I det flesta fall sker dock sådant stöd via det offentliga systemet. Insatsen/aktiviteten innebär en utbetalning."]
[null,null,null,"Enhet: 1 avslutat ärende (utifrån icke fysiskt belastande yrken)"]
[null,null,null,null,null,null,null,"Antal avslutade ärenden:"]
[null,null,null,"Kostnad:",{"$f":"10000*1.0846","v":10846}]
[]
[null,null,null,"Vikarie",null,null,null,null,null,"När en arbetstagare sjukanmäler sig behöver den ofta ersättas av en vikarie, vilket innebär extra kostnader för arbetsgivaren."]
[null,null,null,"Enhet: 1 arbetsdag vikarie (inkl. sociala avgifter, utifrån medianlön)                                         "]
[null,null,null,null,null,null,null,"Antal arbetsdag/ar:"]
[null,null,null,"Kostnad:",{"$f":"1800*1.0846","v":1952.28}]
[null,null,null,null,null,null,null,null,null,null,null,null," "]
[null,null,null,"Egen insats"]
[null,null,null,"Ange namn, enhet, kostnad och antal enheter"]
[null,null,null,"(Ange namn)"]
[]
[null,null,null,"Enhet:",null,null,null,"Antal enheter:"]
[null,null,null,"Kostnad:"]
[]
[]
[]
[]
[null,null,null,"Sammanställning av kostnader"]
[]
[null,null,null,"Arbetsgivare"]
[null,null,null,{"$f":"D12","v":"Sjukskrivning (dag 1-14)"},null,null,null,null,null,{"$f":"H15*E15","v":0}]
[null,null,null,{"$f":"D17","v":"Företagshälsovård"},null,null,null,null,null,{"$f":"H20*E20","v":0}]
[null,null,null,{"$f":"D22","v":"Vikarie"},null,null,null,null,null,{"$f":"H25*E25","v":0}]
[null,null,null,{"$f":"D27&\" -\"&D29","v":"Egen insats -(Ange namn)"},null,null,null,null,null,{"$f":"H32*E32","v":0}]
[null,null,null,"Summa",null,null,null,null,null,{"$f":"SUM(J40:J43)","v":0}]

{"sheet":"Totalkostnad alla org.","index":11,"n_rows":34,"n_cols":6,"rows_kept":34,"cut":false,"hidden":false,"merged":[[17,2,17,4],[20,2,20,4],[25,2,25,4],[32,2,32,4],[0,20,0,23],[1,20,1,23],[4,2,4,4],[7,2,7,4],[15,2,15,4],[9,2,9,4],[1,4,1,5]]}
[]
[null,null,"Totalkostnad:",null,{"$f":"F5+F8+F10+F18+F21+F26+F33","v":0}]
[]
[]
[null,null,"Kommun",null,null,{"$f":"SumKommun","v":0}]
[null,null,null,{"$f":"Kommun!D246","v":"Skola och förskola"},null,{"$f":"Kommun!I246","v":0}]
[null,null,null,{"$f":"Kommun!D280","v":"Socialtjänst"},null,{"$f":"Kommun!I280","v":0}]
[null,null,"Kommun och region",null,null,{"$f":"SumKommunRegion","v":0}]
[null,null,null,{"$f":"'Kommun & Region'!D39","v":"Ungdomsmottagning"},null,{"$f":"SumKommunRegion","v":0}]
[null,null,"Region",null,null,{"$f":"SumRegion","v":0}]
[null,null,null,{"$f":"Region!D124","v":"Primarvård"},null,{"$f":"Region!J124","v":0}]
[null,null,null,{"$f":"Region!D137","v":"Specialiserad vård"},null,{"$f":"Region!J137","v":0}]
[null,null,null,{"$f":"Region!D142","v":"Tandvård"},null,{"$f":"Region!J142","v":0}]
[null,null,null,{"$f":"Region!D146","v":"Rättspsykiatrisk avdelning/klinik"},null,{"$f":"Region!J146","v":0}]
[null,null,null,{"$f":"Region!D151","v":"Oberoende av verksamhet"},null,{"$f":"Region!J151","v":0}]
[null,null,"Samverkan mellan olika verksamheter",null,null,{"$f":"SumSamverkan","v":0}]
[null,null,null,{"$f":"'Samv. mellan verksamheter'!D26","v":"Samverkan mellan olika verksamheter"},null,{"$f":"SumSamverkan","v":0}]
[null,null,"Ideela organisationer",null,null,{"$f":"SumIdella","v":0}]
[null,null,null,{"$f":"'Ideella organisationer'!D49","v":"Kvinnojour"},null,{"$f":"'Ideella organisationer'!J49","v":0}]
[null,null,null,{"$f":"'Ideella organisationer'!D53","v":"Brottsofferjour"},null,{"$f":"'Ideella organisationer'!J53","v":0}]
[null,null,"Stat",null,null,{"$f":"SumStat","v":0}]
[null,null,null,{"$f":"Stat!D105","v":"Försäkringskassan"},null,{"$f":"Stat!J105","v":0}]
[null,null,null,{"$f":"Stat!D109","v":"Skatteverket"},null,{"$f":"Stat!J109","v":0}]
[null,null,null,{"$f":"Stat!D114","v":"Kronofogdemyndigheten"},null,{"$f":"Stat!J114","v":0}]
[null,null,null,{"$f":"Stat!D119","v":"Brottsoffermyndigheten"},null,{"$f":"Stat!J119","v":0}]
[null,null,"Rättsväsende",null,null,{"$f":"SumRättsväsende","v":0}]
[null,null,null,{"$f":"Rättsväsende!D134","v":"Polisen"},null,{"$f":"Rättsväsende!J134","v":0}]
[null,null,null,{"$f":"Rättsväsende!D139","v":"Åklagarmyndigheten"},null,{"$f":"Rättsväsende!J139","v":0}]
[null,null,null,{"$f":"Rättsväsende!D146","v":"Domstol"},null,{"$f":"Rättsväsende!J146","v":0}]
[null,null,null,{"$f":"Rättsväsende!D152","v":"Kriminalvård"},null,{"$f":"Rättsväsende!J152","v":0}]
[null,null,null,{"$f":"Rättsväsende!D157","v":"Advokatbyrå"},null,{"$f":"Rättsväsende!J157","v":0}]
[null,null,null,{"$f":"Rättsväsende!D165","v":"Rättsmedicinalverket"},null,{"$f":"Rättsväsende!J165","v":0}]
[null,null,"Privat, offentlig och ideel sektor",null,null,{"$f":"SumPrivOffIdSektor","v":0}]
[null,null,null,{"$f":"'Privat, offentlig & ideel sek'!D39","v":"Arbetsgivare"},null,{"$f":"SumPrivOffIdSektor","v":0}]

{"sheet":"Ex1","index":12,"n_rows":249,"n_cols":8,"rows_kept":249,"cut":false,"hidden":true,"merged":[]}
["Kommun","Kommun och region","Region","Ideella org","Stat","Rättsväsende","Privat, offentlig och ideell sektor","Samverkan"]
["Antal enheter:","Antal enheter:","Antal enheter:","Antal enheter:","Antal enheter:","Antal enheter:","Antal enheter:","Antal enheter:"]
[null,null,6,null,null,null,5]
[]
[]
[null,null,null,null,"Antal enheter:"]
["Antal enheter:","Antal enheter:"]
[null,null,null,null,null,null,"Antal enheter:"]
[]
[null,null,"Antal enheter:",null,null,"Antal enheter:"]
[null,null,4,"Antal enheter:",null,null,null,"Antal enheter:"]
[null,"Antal enheter:",null,8,"Antal enheter:"]
["Antal enheter:"]
[]
[null,null,null,null,null,null,"Antal enheter:"]
[null,null,null,null,"Antal enheter:","Antal enheter:",20]
[null,"Antal enheter:","Antal enheter:"]
["Antal enheter:"]
[null,null,null,"Antal enheter:"]
[]
[null,null,null,null,"Antal enheter:"]
[]
[]
["Antal enheter:",null,null,null,null,"Antal enheter:"]
[1,null,"Antal enheter:",null,"Antal enheter:"]
[]
[]
[]
["Antal enheter:"]
[null,null,null,null,"Antal enheter:","Antal enheter:"]
[null,null,"Antal enheter:"]
[]
[]
[null,null,null,null,"Antal enheter:"]
["Antal enheter:"]
[4,null,null,null,null,"Antal enheter:"]
[null,null,"Antal enheter:"]
[]
[]
[null,null,null,null,"Antal enheter:"]
[]
[null,null,"Antal enheter:",null,null,"Antal enheter:"]
["Antal enheter:"]
[]
[]
[]
[]
[null,null,null,null,null,"Antal enheter:"]
[null,null,"Antal enheter:"]
[null,null,null,null,"Antal enheter:"]
[]
["Antal enheter:",null,null,null,null,"Antal enheter:"]
[]
[null,null,"Antal enheter:",null,"Antal enheter:"]
[]
[null,null,null,null,null,"Antal enheter:"]
[]
[]
["Antal enheter:"]
[null,null,"Antal enheter:",null,"Summa:"]
[]
[]
[]
[]
["Antal enheter:",null,"Antal enheter:",null,null,"Antal enheter:"]
[null,null,null,null,"Summa:"]
[]
[]
[null,null,"Antal enheter:"]
[]
[]
["Antal enheter:"]
[null,null,null,null,null,"Antal enheter:"]
[]
[null,null,"Antal enheter:"]
["Totalsumma:"]
[]
[]
[]
[null,null,null,null,null,"Antal enheter:"]
[]
[]
[]
["Antal enheter:",null,"Antal enheter:"]
[null,null,2]
[]
[null,null,null,null,null,"Antal enheter:"]
[null,null,"Antal enheter:"]
[]
["Antal enheter:"]
[]
[]
[null,null,null,null,null,"Antal enheter:"]
[]
[null,null,"Antal enheter:"]
[]
[]
["Antal enheter:"]
[]
[]
[null,null,null,null,null,"Antal enheter:"]
[null,null,"Antal enheter:"]
[]
[]
["Antal enheter:"]
[null,null,"Antal enheter:",null,null,"Antal enheter:"]
[]
[]
[]
[]
[]
[]
["Antal enheter:"]
[]
[]
[]
[]
[]
["Antal enheter:"]
[]
[]
[]
[]
["Antal enheter:"]
[]
[]
[]
[]
["Antal enheter:"]
[]
[]
[]
[]
[]
[]
["Antal enheter:"]
[]
[]
[]
[]
[]
[]
[]
["Antal enheter:"]
[]
[]
[]
[]
["Antal enheter:"]
[]
[]
[]
[]
[]
[]
[]
[]
["Antal enheter:"]
[]
[]
[]
[]
[]
["Antal enheter:"]
[1]
[]
[]
[]
["Antal enheter:"]
[]
[]
[]
[]
[]
[]
[]
[]
["Antal enheter:"]
[1]
[]
[]
[]
[]
[]
["Antal enheter:"]
[8]
[]
[]
[]
[]
[]
[]
["Antal enheter:"]
[14]
[]
[]
[]
[]
[]
[]
["Antal enheter:"]
[]
[]
[]
[]
[]
[]
["Antal enheter:"]
[10]
[]
[]
[]
[]
["Antal enheter:"]
[]
[]
[]
[]
[]
[]
["Antal enheter:"]
[]
[]
[]
[]
[]
[]
[]
["Antal enheter:"]
[10]
[]
[]
[]
[]
["Antal enheter:"]
[5]
[]
[]
[]
[]
[]
["Antal enheter:"]
[80]
[]
[]
[]
[]
[]
["Antal enheter:"]

{"sheet":"Ex2","index":13,"n_rows":249,"n_cols":8,"rows_kept":249,"cut":false,"hidden":true,"merged":[]}
["Kommun","Kommun och region","Region","Ideella org","Stat","Rättsväsende","Privat, offentlig och ideell sektor","Samverkan"]
["Antal enheter:","Antal enheter:","Antal enheter:","Antal enheter:","Antal enheter:","Antal enheter:","Antal enheter:","Antal enheter:"]
[null,null,null,null,null,1,14]
[]
[]
[null,null,null,null,"Antal enheter:"]
["Antal enheter:","Antal enheter:"]
[null,null,null,null,null,null,"Antal enheter:"]
[]
[null,null,"Antal enheter:",null,null,"Antal enheter:"]
[null,null,null,"Antal enheter:",null,null,null,"Antal enheter:"]
[null,"Antal enheter:",null,null,"Antal enheter:"]
["Antal enheter:"]
[]
[null,null,null,null,null,null,"Antal enheter:"]
[null,null,null,null,"Antal enheter:","Antal enheter:"]
[null,"Antal enheter:","Antal enheter:"]
["Antal enheter:"]
[null,null,null,"Antal enheter:"]
[]
[null,null,null,null,"Antal enheter:"]
[]
[]
["Antal enheter:",null,null,null,null,"Antal enheter:"]
[null,null,"Antal enheter:",null,"Antal enheter:"]
[]
[]
[]
["Antal enheter:"]
[null,null,null,null,"Antal enheter:","Antal enheter:"]
[null,null,"Antal enheter:",null,195]
[null,null,1]
[]
[null,null,null,null,"Antal enheter:"]
["Antal enheter:",null,null,null,1]
[null,null,null,null,null,"Antal enheter:"]
[null,null,"Antal enheter:"]
[null,null,1]
[]
[null,null,null,null,"Antal enheter:"]
[null,null,null,null,1]
[null,null,"Antal enheter:",null,null,"Antal enheter:"]
["Antal enheter:",null,24]
[]
[]
[]
[]
[null,null,null,null,null,"Antal enheter:"]
[null,null,"Antal enheter:"]
[null,null,null,null,"Antal enheter:"]
[]
["Antal enheter:",null,null,null,null,"Antal enheter:"]
[]
[null,null,"Antal enheter:",null,"Antal enheter:"]
[]
[null,null,null,null,null,"Antal enheter:"]
[]
[]
["Antal enheter:"]
[null,null,"Antal enheter:",null,"Summa:"]
[]
[]
[]
[]
["Antal enheter:",null,"Antal enheter:",null,null,"Antal enheter:"]
[1,null,null,null,"Summa:"]
[]
[]
[null,null,"Antal enheter:"]
[null,null,2]
[]
["Antal enheter:"]
[null,null,null,null,null,"Antal enheter:"]
[]
[null,null,"Antal enheter:"]
["Totalsumma:"]
[]
[]
[]
[null,null,null,null,null,"Antal enheter:"]
[]
[]
[]
["Antal enheter:",null,"Antal enheter:"]
[]
[]
[null,null,null,null,null,"Antal enheter:"]
[null,null,"Antal enheter:"]
[]
["Antal enheter:"]
[]
[]
[null,null,null,null,null,"Antal enheter:"]
[]
[null,null,"Antal enheter:"]
[]
[]
["Antal enheter:"]
[]
[]
[null,null,null,null,null,"Antal enheter:"]
[null,null,"Antal enheter:"]
[]
[]
["Antal enheter:"]
[null,null,"Antal enheter:",null,null,"Antal enheter:"]
[]
[]
[]
[]
[]
[]
["Antal enheter:"]
[]
[]
[]
[]
[]
["Antal enheter:"]
[]
[]
[]
[]
["Antal enheter:"]
[]
[]
[]
[]
["Antal enheter:"]
[]
[]
[]
[]
[]
[]
["Antal enheter:"]
[]
[]
[]
[]
[]
[]
[]
["Antal enheter:"]
[]
[]
[]
[]
["Antal enheter:"]
[]
[]
[]
[]
[]
[]
[]
[]
["Antal enheter:"]
[]
[]
[]
[]
[]
["Antal enheter:"]
[]
[]
[]
[]
["Antal enheter:"]
[]
[]
[]
[]
[]
[]
[]
[]
["Antal enheter:"]
[]
[]
[]
[]
[]
[]
["Antal enheter:"]
[]
[]
[]
[]
[]
[]
[]
["Antal enheter:"]
[]
[]
[]
[]
[]
[]
[]
["Antal enheter:"]
[90]
[]
[]
[]
[]
[]
["Antal enheter:"]
[]
[]
[]
[]
[]
["Antal enheter:"]
[]
[]
[]
[]
[]
[]
["Antal enheter:"]
[]
[]
[]
[]
[]
[]
[]
["Antal enheter:"]
[]
[]
[]
[]
[]
["Antal enheter:"]
[3]
[]
[]
[]
[]
[]
["Antal enheter:"]
[]
[]
[]
[]
[]
[]
["Antal enheter:"]